{"text_format":"1","workbook":"xlsx","n_sheets":3,"sheets":["Übersicht","Eintragung","Berechnungsblatt"],"not_rendered":{"charts":0,"images":0,"macros":1,"external_links":0,"defined_names":157,"comments":0,"pivot_tables":0},"unopened":[],"bounds":{"document_bytes":16777216,"sheet_cells":100000,"rows_first":2000,"rows_last":500,"rows_between":2000,"halvings":0,"cell_chars":16384,"cell_head_chars":4096},"cells_cut":0,"cells_raw":0,"read":"whole","date_system":"1900"}

{"sheet":"Übersicht","index":0,"n_rows":186,"n_cols":402,"rows_kept":186,"cut":false,"hidden":false,"merged":[[185,262,185,264],[185,106,185,108],[185,173,185,175],[185,274,185,276],[185,341,185,343],[185,103,185,104],[185,110,185,113],[185,115,185,118],[185,120,185,123],[185,125,185,126],[185,128,185,130],[185,240,185,242],[185,249,185,252],[185,254,185,257],[185,6,185,8],[185,72,185,74],[185,40,185,42],[121,1,126,1],[121,35,126,35],[121,67,126,67],[128,1,183,1],[128,35,183,35],[128,67,183,67],[185,69,185,70],[185,3,185,4],[185,37,185,38],[185,15,185,18],[185,20,185,23],[185,25,185,26],[185,28,185,30],[185,10,185,13],[185,44,185,47],[121,101,126,101],[121,134,126,134],[121,168,126,168],[121,201,126,201],[121,235,126,235],[121,269,126,269],[105,1,119,1],[105,35,119,35],[105,67,119,67],[105,101,119,101],[105,134,119,134],[105,168,119,168],[105,201,119,201],[105,235,119,235],[105,269,119,269],[1,1,3,2],[1,3,1,33],[1,35,3,36],[1,37,1,65],[1,67,3,68],[1,69,1,99],[1,101,3,102],[1,103,1,132],[0,101,0,122],[0,123,0,132],[0,1,0,22],[0,23,0,33],[0,35,0,56],[0,67,0,88],[0,89,0,99],[5,1,5,2],[5,35,5,36],[5,67,5,68],[5,101,5,102],[5,134,5,135],[5,168,5,169],[5,201,5,202],[4,1,4,2],[4,35,4,36],[4,67,4,68],[4,101,4,102],[4,134,4,135],[4,168,4,169],[21,1,32,1],[21,35,32,35],[21,67,32,67],[21,101,32,101],[21,134,32,134],[21,168,32,168],[21,201,32,201],[7,1,12,1],[7,35,12,35],[7,67,12,67],[7,101,12,101],[7,134,12,134],[7,168,12,168],[14,1,19,1],[14,35,19,35],[14,67,19,67],[14,101,19,101],[14,134,19,134],[14,168,19,168],[14,201,19,201],[13,6,13,12],[128,101,183,101],[128,134,183,134],[128,168,183,168],[34,201,64,201],[73,1,103,1],[73,35,103,35],[73,67,103,67],[73,101,103,101],[73,134,103,134],[73,168,103,168],[73,201,103,201],[34,1,64,1],[34,35,64,35],[34,67,64,67],[34,101,64,101],[34,134,64,134],[34,168,64,168],[128,201,183,201],[66,1,71,1],[66,35,71,35],[66,67,71,67],[66,101,71,101],[66,134,71,134],[66,168,71,168],[185,170,185,171],[185,136,185,137],[185,206,185,208],[1,338,1,367],[7,302,12,302],[7,336,12,336],[128,336,183,336],[185,271,185,272],[185,237,185,238],[185,307,185,309],[185,143,185,146],[185,148,185,151],[185,153,185,156],[185,158,185,159],[185,161,185,163],[185,177,185,180],[185,182,185,185],[66,201,71,201],[66,235,71,235],[66,269,71,269],[66,302,71,302],[66,336,71,336],[185,139,185,141],[185,259,185,260],[1,369,3,370],[1,371,1,401],[4,235,4,236],[4,269,4,270],[4,302,4,303],[4,336,4,337],[4,369,4,370],[0,391,0,401],[1,235,3,236],[1,237,1,267],[1,269,3,270],[1,271,1,300],[1,302,3,303],[1,304,1,334],[1,336,3,337],[0,291,0,300],[0,302,0,323],[0,324,0,334],[0,336,0,357],[0,358,0,367],[0,369,0,390],[7,369,12,369],[21,235,32,235],[21,269,32,269],[21,302,32,302],[21,336,32,336],[21,369,32,369],[5,235,5,236],[5,269,5,270],[5,302,5,303],[5,336,5,337],[5,369,5,370],[14,235,19,235],[14,269,19,269],[14,302,19,302],[14,336,19,336],[14,369,19,369],[128,369,183,369],[34,302,64,302],[34,336,64,336],[34,369,64,369],[73,235,103,235],[73,269,103,269],[73,302,103,302],[73,336,103,336],[73,369,103,369],[105,302,119,302],[105,336,119,336],[105,369,119,369],[121,302,126,302],[121,336,126,336],[121,369,126,369],[128,235,183,235],[128,269,183,269],[128,302,183,302],[66,369,71,369],[0,190,0,199],[0,57,0,65],[0,235,0,256],[0,257,0,267],[0,269,0,290],[7,235,12,235],[7,269,12,269],[34,235,64,235],[34,269,64,269],[7,201,12,201],[4,201,4,202],[1,134,3,135],[1,136,1,166],[1,168,3,169],[1,170,1,199],[1,201,3,202],[1,203,1,233],[0,201,0,222],[0,223,0,233],[0,134,0,155],[0,156,0,166],[0,168,0,189],[185,49,185,52],[185,54,185,57],[185,59,185,60],[185,62,185,64],[185,76,185,79],[185,81,185,84],[185,86,185,89],[185,91,185,92],[185,94,185,96],[185,187,185,190],[185,192,185,193],[185,195,185,197],[185,210,185,213],[185,215,185,218],[185,220,185,223],[185,225,185,226],[185,228,185,230],[185,244,185,247],[185,203,185,204],[185,388,185,391],[185,393,185,394],[185,396,185,398],[185,278,185,281],[185,283,185,286],[185,288,185,291],[185,293,185,294],[185,296,185,298],[185,311,185,314],[185,316,185,319],[185,321,185,324],[185,326,185,327],[185,371,185,372],[185,338,185,339],[185,304,185,305],[185,374,185,376],[185,329,185,331],[185,345,185,348],[185,350,185,353],[185,355,185,358],[185,360,185,361],[185,363,185,365],[185,378,185,381],[185,383,185,386]]}
[null,"Ferienliste Mitarbeiter",null,null,null,null,null,null,null,null,null,null,null,null,null,null,null,null,null,null,null,null,null,{"$f":"DATE(Berechnungsblatt!$B$1,1,1)","v":"2025-01-01"},null,null,null,null,null,null,null,null,null,null,null,"Ferienliste Mitarbeiter",null,null,null,null,null,null,null,null,null,null,null,null,null,null,null,null,null,null,null,null,null,{"$f":"AL4","v":"2025-02-01"},null,null,null,null,null,null,null,null,null,"Ferienliste Mitarbeiter",null,null,null,null,null,null,null,null,null,null,null,null,null,null,null,null,null,null,null,null,null,{"$f":"BR4","v":"2025-03-01"},null,null,null,null,null,null,null,null,null,null,null,"Ferienliste Mitarbeiter",null,null,null,null,null,null,null,null,null,null,null,null,null,null,null,null,null,null,null,null,null,{"$f":"CZ4","v":"2025-04-01"},null,null,null,null,null,null,null,null,null,null,"Ferienliste Mitarbeiter",null,null,null,null,null,null,null,null,null,null,null,null,null,null,null,null,null,null,null,null,null,{"$f":"EG4","v":"2025-05-01"},null,null,null,null,null,null,null,null,null,null,null,"Ferienliste Mitarbeiter",null,null,null,null,null,null,null,null,null,null,null,null,null,null,null,null,null,null,null,null,null,{"$f":"FO4","v":"2025-06-01"},null,null,null,null,null,null,null,null,null,null,"Ferienliste Mitarbeiter",null,null,null,null,null,null,null,null,null,null,null,null,null,null,null,null,null,null,null,null,null,{"$f":"GV4","v":"2025-07-01"},null,null,null,null,null,null,null,null,null,null,null,"Ferienliste Mitarbeiter",null,null,null,null,null,null,null,null,null,null,null,null,null,null,null,null,null,null,null,null,null,{"$f":"ID4","v":"2025-08-01"},null,null,null,null,null,null,null,null,null,null,null,"Ferienliste Mitarbeiter",null,null,null,null,null,null,null,null,null,null,null,null,null,null,null,null,null,null,null,null,null,{"$f":"JL4","v":"2025-09-01"},null,null,null,null,null,null,null,null,null,null,"Ferienliste Mitarbeiter",null,null,null,null,null,null,null,null,null,null,null,null,null,null,null,null,null,null,null,null,null,{"$f":"KS4","v":"2025-10-01"},null,null,null,null,null,null,null,null,null,null,null,"Ferienliste Mitarbeiter",null,null,null,null,null,null,null,null,null,null,null,null,null,null,null,null,null,null,null,null,null,{"$f":"MA4","v":"2025-11-01"},null,null,null,null,null,null,null,null,null,null,"Ferienliste Mitarbeiter",null,null,null,null,null,null,null,null,null,null,null,null,null,null,null,null,null,null,null,null,null,{"$f":"NH4","v":"2025-12-01"}]
[null,"Abteilung/Name",null,{"$f":"X1","v":"2025-01-01"},null,null,null,null,null,null,null,null,null,null,null,null,null,null,null,null,null,null,null,null,null,null,null,null,null,null,null,null,null,null,null,"Abteilung/Name",null,{"$f":"AL4","v":"2025-02-01"},null,null,null,null,null,null,null,null,null,null,null,null,null,null,null,null,null,null,null,null,null,null,null,null,null,null,null,null,null,"Abteilung/Name",null,{"$f":"BR4","v":"2025-03-01"},null,null,null,null,null,null,null,null,null,null,null,null,null,null,null,null,null,null,null,null,null,null,null,null,null,null,null,null,null,null,null,"Abteilung/Name",null,{"$f":"CZ4","v":"2025-04-01"},null,null,null,null,null,null,null,null,null,null,null,null,null,null,null,null,null,null,null,null,null,null,null,null,null,null,null,null,null,null,"Abteilung/Name",null,{"$f":"EG4","v":"2025-05-01"},null,null,null,null,null,null,null,null,null,null,null,null,null,null,null,null,null,null,null,null,null,null,null,null,null,null,null,null,null,null,null,"Abteilung/Name",null,{"$f":"FO4","v":"2025-06-01"},null,null,null,null,null,null,null,null,null,null,null,null,null,null,null,null,null,null,null,null,null,null,null,null,null,null,null,null,null,null,"Abteilung/Name",null,{"$f":"GV4","v":"2025-07-01"},null,null,null,null,null,null,null,null,null,null,null,null,null,null,null,null,null,null,null,null,null,null,null,null,null,null,null,null,null,null,null,"Abteilung/Name",null,{"$f":"ID4","v":"2025-08-01"},null,null,null,null,null,null,null,null,null,null,null,null,null,null,null,null,null,null,null,null,null,null,null,null,null,null,null,null,null,null,null,"Abteilung/Name",null,{"$f":"JL4","v":"2025-09-01"},null,null,null,null,null,null,null,null,null,null,null,null,null,null,null,null,null,null,null,null,null,null,null,null,null,null,null,null,null,null,"Abteilung/Name",null,{"$f":"KS4","v":"2025-10-01"},null,null,null,null,null,null,null,null,null,null,null,null,null,null,null,null,null,null,null,null,null,null,null,null,null,null,null,null,null,null,null,"Abteilung/Name",null,{"$f":"MA4","v":"2025-11-01"},null,null,null,null,null,null,null,null,null,null,null,null,null,null,null,null,null,null,null,null,null,null,null,null,null,null,null,null,null,null,"Abteilung/Name",null,{"$f":"NH4","v":"2025-12-01"}]
[null,null,null,{"$f":"TEXT(D4,\"TTT\")","v":"Mi"},"Do","Fr",{"$f":"TEXT(G4,\"TTT\")","v":"Sa"},{"$f":"TEXT(H4,\"TTT\")","v":"So"},"Mo","Di","Mi","Do","Fr","Sa","So","Mo","Di","Mi","Do","Fr","Sa","So","Mo","Di","Mi","Do","Fr","Sa","So","Mo","Di","Mi","Do","Fr",null,null,null,{"$f":"TEXT(AL4,\"TTT\")","v":"Sa"},{"$f":"TEXT(AM4,\"TTT\")","v":"So"},{"$f":"TEXT(AN4,\"TTT\")","v":"Mo"},{"$f":"TEXT(AO4,\"TTT\")","v":"Di"},{"$f":"TEXT(AP4,\"TTT\")","v":"Mi"},{"$f":"TEXT(AQ4,\"TTT\")","v":"Do"},{"$f":"TEXT(AR4,\"TTT\")","v":"Fr"},{"$f":"TEXT(AS4,\"TTT\")","v":"Sa"},{"$f":"TEXT(AT4,\"TTT\")","v":"So"},{"$f":"TEXT(AU4,\"TTT\")","v":"Mo"},{"$f":"TEXT(AV4,\"TTT\")","v":"Di"},{"$f":"TEXT(AW4,\"TTT\")","v":"Mi"},{"$f":"TEXT(AX4,\"TTT\")","v":"Do"},{"$f":"TEXT(AY4,\"TTT\")","v":"Fr"},{"$f":"TEXT(AZ4,\"TTT\")","v":"Sa"},{"$f":"TEXT(BA4,\"TTT\")","v":"So"},{"$f":"TEXT(BB4,\"TTT\")","v":"Mo"},{"$f":"TEXT(BC4,\"TTT\")","v":"Di"},{"$f":"TEXT(BD4,\"TTT\")","v":"Mi"},{"$f":"TEXT(BE4,\"TTT\")","v":"Do"},{"$f":"TEXT(BF4,\"TTT\")","v":"Fr"},{"$f":"TEXT(BG4,\"TTT\")","v":"Sa"},{"$f":"TEXT(BH4,\"TTT\")","v":"So"},{"$f":"TEXT(BI4,\"TTT\")","v":"Mo"},{"$f":"TEXT(BJ4,\"TTT\")","v":"Di"},{"$f":"TEXT(BK4,\"TTT\")","v":"Mi"},{"$f":"TEXT(BL4,\"TTT\")","v":"Do"},{"$f":"TEXT(BM4,\"TTT\")","v":"Fr"},{"$f":"TEXT(BN4,\"TTT\")","v":"-"},null,null,null,{"$f":"TEXT(BR4,\"TTT\")","v":"Sa"},{"$f":"TEXT(BS4,\"TTT\")","v":"So"},{"$f":"TEXT(BT4,\"TTT\")","v":"Mo"},{"$f":"TEXT(BU4,\"TTT\")","v":"Di"},{"$f":"TEXT(BV4,\"TTT\")","v":"Mi"},{"$f":"TEXT(BW4,\"TTT\")","v":"Do"},{"$f":"TEXT(BX4,\"TTT\")","v":"Fr"},{"$f":"TEXT(BY4,\"TTT\")","v":"Sa"},{"$f":"TEXT(BZ4,\"TTT\")","v":"So"},{"$f":"TEXT(CA4,\"TTT\")","v":"Mo"},{"$f":"TEXT(CB4,\"TTT\")","v":"Di"},{"$f":"TEXT(CC4,\"TTT\")","v":"Mi"},{"$f":"TEXT(CD4,\"TTT\")","v":"Do"},{"$f":"TEXT(CE4,\"TTT\")","v":"Fr"},{"$f":"TEXT(CF4,\"TTT\")","v":"Sa"},{"$f":"TEXT(CG4,\"TTT\")","v":"So"},{"$f":"TEXT(CH4,\"TTT\")","v":"Mo"},{"$f":"TEXT(CI4,\"TTT\")","v":"Di"},{"$f":"TEXT(CJ4,\"TTT\")","v":"Mi"},{"$f":"TEXT(CK4,\"TTT\")","v":"Do"},{"$f":"TEXT(CL4,\"TTT\")","v":"Fr"},{"$f":"TEXT(CM4,\"TTT\")","v":"Sa"},{"$f":"TEXT(CN4,\"TTT\")","v":"So"},{"$f":"TEXT(CO4,\"TTT\")","v":"Mo"},{"$f":"TEXT(CP4,\"TTT\")","v":"Di"},{"$f":"TEXT(CQ4,\"TTT\")","v":"Mi"},{"$f":"TEXT(CR4,\"TTT\")","v":"Do"},{"$f":"TEXT(CS4,\"TTT\")","v":"Fr"},{"$f":"TEXT(CT4,\"TTT\")","v":"Sa"},{"$f":"TEXT(CU4,\"TTT\")","v":"So"},{"$f":"TEXT(CV4,\"TTT\")","v":"Mo"},null,null,null,{"$f":"TEXT(CZ4,\"TTT\")","v":"Di"},{"$f":"TEXT(DA4,\"TTT\")","v":"Mi"},{"$f":"TEXT(DB4,\"TTT\")","v":"Do"},{"$f":"TEXT(DC4,\"TTT\")","v":"Fr"},{"$f":"TEXT(DD4,\"TTT\")","v":"Sa"},{"$f":"TEXT(DE4,\"TTT\")","v":"So"},{"$f":"TEXT(DF4,\"TTT\")","v":"Mo"},{"$f":"TEXT(DG4,\"TTT\")","v":"Di"},{"$f":"TEXT(DH4,\"TTT\")","v":"Mi"},{"$f":"TEXT(DI4,\"TTT\")","v":"Do"},{"$f":"TEXT(DJ4,\"TTT\")","v":"Fr"},{"$f":"TEXT(DK4,\"TTT\")","v":"Sa"},{"$f":"TEXT(DL4,\"TTT\")","v":"So"},{"$f":"TEXT(DM4,\"TTT\")","v":"Mo"},{"$f":"TEXT(DN4,\"TTT\")","v":"Di"},{"$f":"TEXT(DO4,\"TTT\")","v":"Mi"},{"$f":"TEXT(DP4,\"TTT\")","v":"Do"},{"$f":"TEXT(DQ4,\"TTT\")","v":"Fr"},{"$f":"TEXT(DR4,\"TTT\")","v":"Sa"},{"$f":"TEXT(DS4,\"TTT\")","v":"So"},{"$f":"TEXT(DT4,\"TTT\")","v":"Mo"},{"$f":"TEXT(DU4,\"TTT\")","v":"Di"},{"$f":"TEXT(DV4,\"TTT\")","v":"Mi"},{"$f":"TEXT(DW4,\"TTT\")","v":"Do"},{"$f":"TEXT(DX4,\"TTT\")","v":"Fr"},{"$f":"TEXT(DY4,\"TTT\")","v":"Sa"},{"$f":"TEXT(DZ4,\"TTT\")","v":"So"},{"$f":"TEXT(EA4,\"TTT\")","v":"Mo"},{"$f":"TEXT(EB4,\"TTT\")","v":"Di"},{"$f":"TEXT(EC4,\"TTT\")","v":"Mi"},null,null,null,{"$f":"TEXT(EG4,\"TTT\")","v":"Do"},{"$f":"TEXT(EH4,\"TTT\")","v":"Fr"},{"$f":"TEXT(EI4,\"TTT\")","v":"Sa"},{"$f":"TEXT(EJ4,\"TTT\")","v":"So"},{"$f":"TEXT(EK4,\"TTT\")","v":"Mo"},{"$f":"TEXT(EL4,\"TTT\")","v":"Di"},{"$f":"TEXT(EM4,\"TTT\")","v":"Mi"},{"$f":"TEXT(EN4,\"TTT\")","v":"Do"},{"$f":"TEXT(EO4,\"TTT\")","v":"Fr"},{"$f":"TEXT(EP4,\"TTT\")","v":"Sa"},{"$f":"TEXT(EQ4,\"TTT\")","v":"So"},{"$f":"TEXT(ER4,\"TTT\")","v":"Mo"},{"$f":"TEXT(ES4,\"TTT\")","v":"Di"},{"$f":"TEXT(ET4,\"TTT\")","v":"Mi"},{"$f":"TEXT(EU4,\"TTT\")","v":"Do"},{"$f":"TEXT(EV4,\"TTT\")","v":"Fr"},{"$f":"TEXT(EW4,\"TTT\")","v":"Sa"},{"$f":"TEXT(EX4,\"TTT\")","v":"So"},{"$f":"TEXT(EY4,\"TTT\")","v":"Mo"},{"$f":"TEXT(EZ4,\"TTT\")","v":"Di"},{"$f":"TEXT(FA4,\"TTT\")","v":"Mi"},{"$f":"TEXT(FB4,\"TTT\")","v":"Do"},{"$f":"TEXT(FC4,\"TTT\")","v":"Fr"},{"$f":"TEXT(FD4,\"TTT\")","v":"Sa"},{"$f":"TEXT(FE4,\"TTT\")","v":"So"},{"$f":"TEXT(FF4,\"TTT\")","v":"Mo"},{"$f":"TEXT(FG4,\"TTT\")","v":"Di"},{"$f":"TEXT(FH4,\"TTT\")","v":"Mi"},{"$f":"TEXT(FI4,\"TTT\")","v":"Do"},{"$f":"TEXT(FJ4,\"TTT\")","v":"Fr"},{"$f":"TEXT(FK4,\"TTT\")","v":"Sa"},null,null,null,{"$f":"TEXT(FO4,\"TTT\")","v":"So"},{"$f":"TEXT(FP4,\"TTT\")","v":"Mo"},{"$f":"TEXT(FQ4,\"TTT\")","v":"Di"},{"$f":"TEXT(FR4,\"TTT\")","v":"Mi"},{"$f":"TEXT(FS4,\"TTT\")","v":"Do"},{"$f":"TEXT(FT4,\"TTT\")","v":"Fr"},{"$f":"TEXT(FU4,\"TTT\")","v":"Sa"},{"$f":"TEXT(FV4,\"TTT\")","v":"So"},{"$f":"TEXT(FW4,\"TTT\")","v":"Mo"},{"$f":"TEXT(FX4,\"TTT\")","v":"Di"},{"$f":"TEXT(FY4,\"TTT\")","v":"Mi"},{"$f":"TEXT(FZ4,\"TTT\")","v":"Do"},{"$f":"TEXT(GA4,\"TTT\")","v":"Fr"},{"$f":"TEXT(GB4,\"TTT\")","v":"Sa"},{"$f":"TEXT(GC4,\"TTT\")","v":"So"},{"$f":"TEXT(GD4,\"TTT\")","v":"Mo"},{"$f":"TEXT(GE4,\"TTT\")","v":"Di"},{"$f":"TEXT(GF4,\"TTT\")","v":"Mi"},{"$f":"TEXT(GG4,\"TTT\")","v":"Do"},{"$f":"TEXT(GH4,\"TTT\")","v":"Fr"},{"$f":"TEXT(GI4,\"TTT\")","v":"Sa"},{"$f":"TEXT(GJ4,\"TTT\")","v":"So"},{"$f":"TEXT(GK4,\"TTT\")","v":"Mo"},{"$f":"TEXT(GL4,\"TTT\")","v":"Di"},{"$f":"TEXT(GM4,\"TTT\")","v":"Mi"},{"$f":"TEXT(GN4,\"TTT\")","v":"Do"},{"$f":"TEXT(GO4,\"TTT\")","v":"Fr"},{"$f":"TEXT(GP4,\"TTT\")","v":"Sa"},{"$f":"TEXT(GQ4,\"TTT\")","v":"So"},{"$f":"TEXT(GR4,\"TTT\")","v":"Mo"},null,null,null,{"$f":"TEXT(GV4,\"TTT\")","v":"Di"},{"$f":"TEXT(GW4,\"TTT\")","v":"Mi"},{"$f":"TEXT(GX4,\"TTT\")","v":"Do"},{"$f":"TEXT(GY4,\"TTT\")","v":"Fr"},{"$f":"TEXT(GZ4,\"TTT\")","v":"Sa"},{"$f":"TEXT(HA4,\"TTT\")","v":"So"},{"$f":"TEXT(HB4,\"TTT\")","v":"Mo"},{"$f":"TEXT(HC4,\"TTT\")","v":"Di"},{"$f":"TEXT(HD4,\"TTT\")","v":"Mi"},{"$f":"TEXT(HE4,\"TTT\")","v":"Do"},{"$f":"TEXT(HF4,\"TTT\")","v":"Fr"},{"$f":"TEXT(HG4,\"TTT\")","v":"Sa"},{"$f":"TEXT(HH4,\"TTT\")","v":"So"},{"$f":"TEXT(HI4,\"TTT\")","v":"Mo"},{"$f":"TEXT(HJ4,\"TTT\")","v":"Di"},{"$f":"TEXT(HK4,\"TTT\")","v":"Mi"},{"$f":"TEXT(HL4,\"TTT\")","v":"Do"},{"$f":"TEXT(HM4,\"TTT\")","v":"Fr"},{"$f":"TEXT(HN4,\"TTT\")","v":"Sa"},{"$f":"TEXT(HO4,\"TTT\")","v":"So"},{"$f":"TEXT(HP4,\"TTT\")","v":"Mo"},{"$f":"TEXT(HQ4,\"TTT\")","v":"Di"},{"$f":"TEXT(HR4,\"TTT\")","v":"Mi"},{"$f":"TEXT(HS4,\"TTT\")","v":"Do"},{"$f":"TEXT(HT4,\"TTT\")","v":"Fr"},{"$f":"TEXT(HU4,\"TTT\")","v":"Sa"},{"$f":"TEXT(HV4,\"TTT\")","v":"So"},{"$f":"TEXT(HW4,\"TTT\")","v":"Mo"},{"$f":"TEXT(HX4,\"TTT\")","v":"Di"},{"$f":"TEXT(HY4,\"TTT\")","v":"Mi"},{"$f":"TEXT(HZ4,\"TTT\")","v":"Do"},null,null,null,{"$f":"TEXT(ID4,\"TTT\")","v":"Fr"},{"$f":"TEXT(IE4,\"TTT\")","v":"Sa"},{"$f":"TEXT(IF4,\"TTT\")","v":"So"},{"$f":"TEXT(IG4,\"TTT\")","v":"Mo"},{"$f":"TEXT(IH4,\"TTT\")","v":"Di"},{"$f":"TEXT(II4,\"TTT\")","v":"Mi"},{"$f":"TEXT(IJ4,\"TTT\")","v":"Do"},{"$f":"TEXT(IK4,\"TTT\")","v":"Fr"},{"$f":"TEXT(IL4,\"TTT\")","v":"Sa"},{"$f":"TEXT(IM4,\"TTT\")","v":"So"},{"$f":"TEXT(IN4,\"TTT\")","v":"Mo"},{"$f":"TEXT(IO4,\"TTT\")","v":"Di"},{"$f":"TEXT(IP4,\"TTT\")","v":"Mi"},{"$f":"TEXT(IQ4,\"TTT\")","v":"Do"},{"$f":"TEXT(IR4,\"TTT\")","v":"Fr"},{"$f":"TEXT(IS4,\"TTT\")","v":"Sa"},{"$f":"TEXT(IT4,\"TTT\")","v":"So"},{"$f":"TEXT(IU4,\"TTT\")","v":"Mo"},{"$f":"TEXT(IV4,\"TTT\")","v":"Di"},{"$f":"TEXT(IW4,\"TTT\")","v":"Mi"},{"$f":"TEXT(IX4,\"TTT\")","v":"Do"},{"$f":"TEXT(IY4,\"TTT\")","v":"Fr"},{"$f":"TEXT(IZ4,\"TTT\")","v":"Sa"},{"$f":"TEXT(JA4,\"TTT\")","v":"So"},{"$f":"TEXT(JB4,\"TTT\")","v":"Mo"},{"$f":"TEXT(JC4,\"TTT\")","v":"Di"},{"$f":"TEXT(JD4,\"TTT\")","v":"Mi"},{"$f":"TEXT(JE4,\"TTT\")","v":"Do"},{"$f":"TEXT(JF4,\"TTT\")","v":"Fr"},{"$f":"TEXT(JG4,\"TTT\")","v":"Sa"},{"$f":"TEXT(JH4,\"TTT\")","v":"So"},null,null,null,{"$f":"TEXT(JL4,\"TTT\")","v":"Mo"},{"$f":"TEXT(JM4,\"TTT\")","v":"Di"},{"$f":"TEXT(JN4,\"TTT\")","v":"Mi"},{"$f":"TEXT(JO4,\"TTT\")","v":"Do"},{"$f":"TEXT(JP4,\"TTT\")","v":"Fr"},{"$f":"TEXT(JQ4,\"TTT\")","v":"Sa"},{"$f":"TEXT(JR4,\"TTT\")","v":"So"},{"$f":"TEXT(JS4,\"TTT\")","v":"Mo"},{"$f":"TEXT(JT4,\"TTT\")","v":"Di"},{"$f":"TEXT(JU4,\"TTT\")","v":"Mi"},{"$f":"TEXT(JV4,\"TTT\")","v":"Do"},{"$f":"TEXT(JW4,\"TTT\")","v":"Fr"},{"$f":"TEXT(JX4,\"TTT\")","v":"Sa"},{"$f":"TEXT(JY4,\"TTT\")","v":"So"},{"$f":"TEXT(JZ4,\"TTT\")","v":"Mo"},{"$f":"TEXT(KA4,\"TTT\")","v":"Di"},{"$f":"TEXT(KB4,\"TTT\")","v":"Mi"},{"$f":"TEXT(KC4,\"TTT\")","v":"Do"},{"$f":"TEXT(KD4,\"TTT\")","v":"Fr"},{"$f":"TEXT(KE4,\"TTT\")","v":"Sa"},{"$f":"TEXT(KF4,\"TTT\")","v":"So"},{"$f":"TEXT(KG4,\"TTT\")","v":"Mo"},{"$f":"TEXT(KH4,\"TTT\")","v":"Di"},{"$f":"TEXT(KI4,\"TTT\")","v":"Mi"},{"$f":"TEXT(KJ4,\"TTT\")","v":"Do"},{"$f":"TEXT(KK4,\"TTT\")","v":"Fr"},{"$f":"TEXT(KL4,\"TTT\")","v":"Sa"},{"$f":"TEXT(KM4,\"TTT\")","v":"So"},{"$f":"TEXT(KN4,\"TTT\")","v":"Mo"},{"$f":"TEXT(KO4,\"TTT\")","v":"Di"},null,null,null,{"$f":"TEXT(KS4,\"TTT\")","v":"Mi"},{"$f":"TEXT(KT4,\"TTT\")","v":"Do"},{"$f":"TEXT(KU4,\"TTT\")","v":"Fr"},{"$f":"TEXT(KV4,\"TTT\")","v":"Sa"},{"$f":"TEXT(KW4,\"TTT\")","v":"So"},{"$f":"TEXT(KX4,\"TTT\")","v":"Mo"},{"$f":"TEXT(KY4,\"TTT\")","v":"Di"},{"$f":"TEXT(KZ4,\"TTT\")","v":"Mi"},{"$f":"TEXT(LA4,\"TTT\")","v":"Do"},{"$f":"TEXT(LB4,\"TTT\")","v":"Fr"},{"$f":"TEXT(LC4,\"TTT\")","v":"Sa"},{"$f":"TEXT(LD4,\"TTT\")","v":"So"},{"$f":"TEXT(LE4,\"TTT\")","v":"Mo"},{"$f":"TEXT(LF4,\"TTT\")","v":"Di"},{"$f":"TEXT(LG4,\"TTT\")","v":"Mi"},{"$f":"TEXT(LH4,\"TTT\")","v":"Do"},{"$f":"TEXT(LI4,\"TTT\")","v":"Fr"},{"$f":"TEXT(LJ4,\"TTT\")","v":"Sa"},{"$f":"TEXT(LK4,\"TTT\")","v":"So"},{"$f":"TEXT(LL4,\"TTT\")","v":"Mo"},{"$f":"TEXT(LM4,\"TTT\")","v":"Di"},{"$f":"TEXT(LN4,\"TTT\")","v":"Mi"},{"$f":"TEXT(LO4,\"TTT\")","v":"Do"},{"$f":"TEXT(LP4,\"TTT\")","v":"Fr"},{"$f":"TEXT(LQ4,\"TTT\")","v":"Sa"},{"$f":"TEXT(LR4,\"TTT\")","v":"So"},{"$f":"TEXT(LS4,\"TTT\")","v":"Mo"},{"$f":"TEXT(LT4,\"TTT\")","v":"Di"},{"$f":"TEXT(LU4,\"TTT\")","v":"Mi"},{"$f":"TEXT(LV4,\"TTT\")","v":"Do"},{"$f":"TEXT(LW4,\"TTT\")","v":"Fr"},null,null,null,{"$f":"TEXT(MA4,\"TTT\")","v":"Sa"},{"$f":"TEXT(MB4,\"TTT\")","v":"So"},{"$f":"TEXT(MC4,\"TTT\")","v":"Mo"},{"$f":"TEXT(MD4,\"TTT\")","v":"Di"},{"$f":"TEXT(ME4,\"TTT\")","v":"Mi"},{"$f":"TEXT(MF4,\"TTT\")","v":"Do"},{"$f":"TEXT(MG4,\"TTT\")","v":"Fr"},{"$f":"TEXT(MH4,\"TTT\")","v":"Sa"},{"$f":"TEXT(MI4,\"TTT\")","v":"So"},{"$f":"TEXT(MJ4,\"TTT\")","v":"Mo"},{"$f":"TEXT(MK4,\"TTT\")","v":"Di"},{"$f":"TEXT(ML4,\"TTT\")","v":"Mi"},{"$f":"TEXT(MM4,\"TTT\")","v":"Do"},{"$f":"TEXT(MN4,\"TTT\")","v":"Fr"},{"$f":"TEXT(MO4,\"TTT\")","v":"Sa"},{"$f":"TEXT(MP4,\"TTT\")","v":"So"},{"$f":"TEXT(MQ4,\"TTT\")","v":"Mo"},{"$f":"TEXT(MR4,\"TTT\")","v":"Di"},{"$f":"TEXT(MS4,\"TTT\")","v":"Mi"},{"$f":"TEXT(MT4,\"TTT\")","v":"Do"},{"$f":"TEXT(MU4,\"TTT\")","v":"Fr"},{"$f":"TEXT(MV4,\"TTT\")","v":"Sa"},{"$f":"TEXT(MW4,\"TTT\")","v":"So"},{"$f":"TEXT(MX4,\"TTT\")","v":"Mo"},{"$f":"TEXT(MY4,\"TTT\")","v":"Di"},{"$f":"TEXT(MZ4,\"TTT\")","v":"Mi"},{"$f":"TEXT(NA4,\"TTT\")","v":"Do"},{"$f":"TEXT(NB4,\"TTT\")","v":"Fr"},{"$f":"TEXT(NC4,\"TTT\")","v":"Sa"},{"$f":"TEXT(ND4,\"TTT\")","v":"So"},null,null,null,{"$f":"TEXT(NH4,\"TTT\")","v":"Mo"},{"$f":"TEXT(NI4,\"TTT\")","v":"Di"},{"$f":"TEXT(NJ4,\"TTT\")","v":"Mi"},{"$f":"TEXT(NK4,\"TTT\")","v":"Do"},{"$f":"TEXT(NL4,\"TTT\")","v":"Fr"},{"$f":"TEXT(NM4,\"TTT\")","v":"Sa"},{"$f":"TEXT(NN4,\"TTT\")","v":"So"},{"$f":"TEXT(NO4,\"TTT\")","v":"Mo"},{"$f":"TEXT(NP4,\"TTT\")","v":"Di"},{"$f":"TEXT(NQ4,\"TTT\")","v":"Mi"},{"$f":"TEXT(NR4,\"TTT\")","v":"Do"},{"$f":"TEXT(NS4,\"TTT\")","v":"Fr"},{"$f":"TEXT(NT4,\"TTT\")","v":"Sa"},{"$f":"TEXT(NU4,\"TTT\")","v":"So"},{"$f":"TEXT(NV4,\"TTT\")","v":"Mo"},{"$f":"TEXT(NW4,\"TTT\")","v":"Di"},{"$f":"TEXT(NX4,\"TTT\")","v":"Mi"},{"$f":"TEXT(NY4,\"TTT\")","v":"Do"},{"$f":"TEXT(NZ4,\"TTT\")","v":"Fr"},{"$f":"TEXT(OA4,\"TTT\")","v":"Sa"},{"$f":"TEXT(OB4,\"TTT\")","v":"So"},{"$f":"TEXT(OC4,\"TTT\")","v":"Mo"},{"$f":"TEXT(OD4,\"TTT\")","v":"Di"},{"$f":"TEXT(OE4,\"TTT\")","v":"Mi"},{"$f":"TEXT(OF4,\"TTT\")","v":"Do"},{"$f":"TEXT(OG4,\"TTT\")","v":"Fr"},{"$f":"TEXT(OH4,\"TTT\")","v":"Sa"},{"$f":"TEXT(OI4,\"TTT\")","v":"So"},{"$f":"TEXT(OJ4,\"TTT\")","v":"Mo"},{"$f":"TEXT(OK4,\"TTT\")","v":"Di"},{"$f":"TEXT(OL4,\"TTT\")","v":"Mi"}]
[null,null,null,{"$f":"D2","v":"2025-01-01"},{"$f":"IFERROR(IF(MONTH(D$4+1)=MONTH(D$4),D$4+1,\"\"),\"\")","v":"2025-01-02"},{"$f":"IFERROR(IF(MONTH(E$4+1)=MONTH(E$4),E$4+1,\"\"),\"\")","v":"2025-01-03"},"2025-01-04","2025-01-05","2025-01-06","2025-01-07","2025-01-08","2025-01-09","2025-01-10","2025-01-11","2025-01-12","2025-01-13","2025-01-14","2025-01-15","2025-01-16","2025-01-17","2025-01-18","2025-01-19","2025-01-20","2025-01-21","2025-01-22","2025-01-23","2025-01-24","2025-01-25","2025-01-26","2025-01-27","2025-01-28","2025-01-29","2025-01-30","2025-01-31",null,null,null,{"$f":"EDATE(D4,1)","v":"2025-02-01"},{"$f":"IFERROR(IF(MONTH(AL$4+1)=MONTH(AL$4),AL$4+1,\"\"),\"\")","v":"2025-02-02"},{"$f":"IFERROR(IF(MONTH(AM$4+1)=MONTH(AM$4),AM$4+1,\"\"),\"\")","v":"2025-02-03"},"2025-02-04","2025-02-05","2025-02-06","2025-02-07","2025-02-08","2025-02-09","2025-02-10","2025-02-11","2025-02-12","2025-02-13","2025-02-14","2025-02-15","2025-02-16","2025-02-17","2025-02-18","2025-02-19","2025-02-20","2025-02-21","2025-02-22","2025-02-23","2025-02-24","2025-02-25","2025-02-26","2025-02-27","2025-02-28",{"$f":"IFERROR(IF(MONTH(BM$4+1)=MONTH(BM$4),BM$4+1,\"-\"),\"\")","v":"-"},null,null,null,{"$f":"EDATE(AL4,1)","v":"2025-03-01"},{"$f":"IFERROR(IF(MONTH(BR$4+1)=MONTH(BR$4),BR$4+1,\"\"),\"\")","v":"2025-03-02"},{"$f":"IFERROR(IF(MONTH(BS$4+1)=MONTH(BS$4),BS$4+1,\"\"),\"\")","v":"2025-03-03"},"2025-03-04","2025-03-05","2025-03-06","2025-03-07","2025-03-08","2025-03-09","2025-03-10","2025-03-11","2025-03-12","2025-03-13","2025-03-14","2025-03-15","2025-03-16","2025-03-17","2025-03-18","2025-03-19","2025-03-20","2025-03-21","2025-03-22","2025-03-23","2025-03-24","2025-03-25","2025-03-26","2025-03-27","2025-03-28","2025-03-29","2025-03-30",{"$f":"IFERROR(IF(MONTH(CU$4+1)=MONTH(CU$4),CU$4+1,\"\"),\"\")","v":"2025-03-31"},null,null,null,{"$f":"EDATE(BR4,1)","v":"2025-04-01"},{"$f":"IFERROR(IF(MONTH(CZ$4+1)=MONTH(CZ$4),CZ$4+1,\"\"),\"\")","v":"2025-04-02"},{"$f":"IFERROR(IF(MONTH(DA$4+1)=MONTH(DA$4),DA$4+1,\"\"),\"\")","v":"2025-04-03"},"2025-04-04","2025-04-05","2025-04-06","2025-04-07","2025-04-08","2025-04-09","2025-04-10","2025-04-11","2025-04-12","2025-04-13","2025-04-14","2025-04-15","2025-04-16","2025-04-17","2025-04-18","2025-04-19","2025-04-20","2025-04-21","2025-04-22","2025-04-23","2025-04-24","2025-04-25","2025-04-26","2025-04-27","2025-04-28","2025-04-29","2025-04-30",null,null,null,{"$f":"EDATE(CZ4,1)","v":"2025-05-01"},{"$f":"IFERROR(IF(MONTH(EG$4+1)=MONTH(EG$4),EG$4+1,\"\"),\"\")","v":"2025-05-02"},{"$f":"IFERROR(IF(MONTH(EH$4+1)=MONTH(EH$4),EH$4+1,\"\"),\"\")","v":"2025-05-03"},"2025-05-04","2025-05-05","2025-05-06","2025-05-07","2025-05-08","2025-05-09","2025-05-10","2025-05-11","2025-05-12","2025-05-13","2025-05-14","2025-05-15","2025-05-16","2025-05-17","2025-05-18","2025-05-19","2025-05-20","2025-05-21","2025-05-22","2025-05-23","2025-05-24","2025-05-25","2025-05-26","2025-05-27","2025-05-28","2025-05-29","2025-05-30",{"$f":"IFERROR(IF(MONTH(FJ$4+1)=MONTH(FJ$4),FJ$4+1,\"\"),\"\")","v":"2025-05-31"},null,null,null,{"$f":"EDATE(EG4,1)","v":"2025-06-01"},{"$f":"IFERROR(IF(MONTH(FO$4+1)=MONTH(FO$4),FO$4+1,\"\"),\"\")","v":"2025-06-02"},{"$f":"IFERROR(IF(MONTH(FP$4+1)=MONTH(FP$4),FP$4+1,\"\"),\"\")","v":"2025-06-03"},"2025-06-04","2025-06-05","2025-06-06","2025-06-07","2025-06-08","2025-06-09","2025-06-10","2025-06-11","2025-06-12","2025-06-13","2025-06-14","2025-06-15","2025-06-16","2025-06-17","2025-06-18","2025-06-19","2025-06-20","2025-06-21","2025-06-22","2025-06-23","2025-06-24","2025-06-25","2025-06-26","2025-06-27","2025-06-28","2025-06-29","2025-06-30",null,null,null,{"$f":"EDATE(FO4,1)","v":"2025-07-01"},{"$f":"IFERROR(IF(MONTH(GV$4+1)=MONTH(GV$4),GV$4+1,\"\"),\"\")","v":"2025-07-02"},{"$f":"IFERROR(IF(MONTH(GW$4+1)=MONTH(GW$4),GW$4+1,\"\"),\"\")","v":"2025-07-03"},"2025-07-04","2025-07-05","2025-07-06","2025-07-07","2025-07-08","2025-07-09","2025-07-10","2025-07-11","2025-07-12","2025-07-13","2025-07-14","2025-07-15","2025-07-16","2025-07-17","2025-07-18","2025-07-19","2025-07-20","2025-07-21","2025-07-22","2025-07-23","2025-07-24","2025-07-25","2025-07-26","2025-07-27","2025-07-28","2025-07-29","2025-07-30",{"$f":"IFERROR(IF(MONTH(HY$4+1)=MONTH(HY$4),HY$4+1,\"\"),\"\")","v":"2025-07-31"},null,null,null,{"$f":"EDATE(GV4,1)","v":"2025-08-01"},{"$f":"IFERROR(IF(MONTH(ID$4+1)=MONTH(ID$4),ID$4+1,\"\"),\"\")","v":"2025-08-02"},{"$f":"IFERROR(IF(MONTH(IE$4+1)=MONTH(IE$4),IE$4+1,\"\"),\"\")","v":"2025-08-03"},"2025-08-04","2025-08-05","2025-08-06","2025-08-07","2025-08-08","2025-08-09","2025-08-10","2025-08-11","2025-08-12","2025-08-13","2025-08-14","2025-08-15","2025-08-16","2025-08-17","2025-08-18","2025-08-19","2025-08-20","2025-08-21","2025-08-22","2025-08-23","2025-08-24","2025-08-25","2025-08-26","2025-08-27","2025-08-28","2025-08-29","2025-08-30",{"$f":"IFERROR(IF(MONTH(JG$4+1)=MONTH(JG$4),JG$4+1,\"\"),\"\")","v":"2025-08-31"},null,null,null,{"$f":"EDATE(ID4,1)","v":"2025-09-01"},{"$f":"IFERROR(IF(MONTH(JL$4+1)=MONTH(JL$4),JL$4+1,\"\"),\"\")","v":"2025-09-02"},{"$f":"IFERROR(IF(MONTH(JM$4+1)=MONTH(JM$4),JM$4+1,\"\"),\"\")","v":"2025-09-03"},"2025-09-04","2025-09-05","2025-09-06","2025-09-07","2025-09-08","2025-09-09","2025-09-10","2025-09-11","2025-09-12","2025-09-13","2025-09-14","2025-09-15","2025-09-16","2025-09-17","2025-09-18","2025-09-19","2025-09-20","2025-09-21","2025-09-22","2025-09-23","2025-09-24","2025-09-25","2025-09-26","2025-09-27","2025-09-28","2025-09-29","2025-09-30",null,null,null,{"$f":"EDATE(JL4,1)","v":"2025-10-01"},{"$f":"IFERROR(IF(MONTH(KS$4+1)=MONTH(KS$4),KS$4+1,\"\"),\"\")","v":"2025-10-02"},{"$f":"IFERROR(IF(MONTH(KT$4+1)=MONTH(KT$4),KT$4+1,\"\"),\"\")","v":"2025-10-03"},"2025-10-04","2025-10-05","2025-10-06","2025-10-07","2025-10-08","2025-10-09","2025-10-10","2025-10-11","2025-10-12","2025-10-13","2025-10-14","2025-10-15","2025-10-16","2025-10-17","2025-10-18","2025-10-19","2025-10-20","2025-10-21","2025-10-22","2025-10-23","2025-10-24","2025-10-25","2025-10-26","2025-10-27","2025-10-28","2025-10-29","2025-10-30",{"$f":"IFERROR(IF(MONTH(LV$4+1)=MONTH(LV$4),LV$4+1,\"\"),\"\")","v":"2025-10-31"},null,null,null,{"$f":"EDATE(KS4,1)","v":"2025-11-01"},{"$f":"IFERROR(IF(MONTH(MA$4+1)=MONTH(MA$4),MA$4+1,\"\"),\"\")","v":"2025-11-02"},{"$f":"IFERROR(IF(MONTH(MB$4+1)=MONTH(MB$4),MB$4+1,\"\"),\"\")","v":"2025-11-03"},"2025-11-04","2025-11-05","2025-11-06","2025-11-07","2025-11-08","2025-11-09","2025-11-10","2025-11-11","2025-11-12","2025-11-13","2025-11-14","2025-11-15","2025-11-16","2025-11-17","2025-11-18","2025-11-19","2025-11-20","2025-11-21","2025-11-22","2025-11-23","2025-11-24","2025-11-25","2025-11-26","2025-11-27","2025-11-28","2025-11-29","2025-11-30",null,null,null,{"$f":"EDATE(MA4,1)","v":"2025-12-01"},{"$f":"IFERROR(IF(MONTH(NH$4+1)=MONTH(NH$4),NH$4+1,\"\"),\"\")","v":"2025-12-02"},{"$f":"IFERROR(IF(MONTH(NI$4+1)=MONTH(NI$4),NI$4+1,\"\"),\"\")","v":"2025-12-03"},"2025-12-04","2025-12-05","2025-12-06","2025-12-07","2025-12-08","2025-12-09","2025-12-10","2025-12-11","2025-12-12","2025-12-13","2025-12-14","2025-12-15","2025-12-16","2025-12-17","2025-12-18","2025-12-19","2025-12-20","2025-12-21","2025-12-22","2025-12-23","2025-12-24","2025-12-25","2025-12-26","2025-12-27","2025-12-28","2025-12-29","2025-12-30",{"$f":"IFERROR(IF(MONTH(OK$4+1)=MONTH(OK$4),OK$4+1,\"\"),\"\")","v":"2025-12-31"}]
["Schulferien KV","Schulferien KV",null,null,null,null,null,null,null,null,null,null,null,null,null,null,null,null,null,null,null,null,null,null,null,null,null,null,null,null,null,null,null,null,null,"Schulferien KV",null,null,null,null,null,null,null,null,null,null,null,null,null,null,null,null,null,null,null,null,null,null,null,null,null,null,null,null,null,null,null,"Schulferien KV",null,null,null,null,null,null,null,null,null,null,null,null,null,null,null,null,null,null,null,null,null,null,null,null,null,null,null,null,null,null,null,null,null,"Schulferien KV",null,null,null,null,null,null,null,null,null,null,null,null,null,null,null,null,null,null,null,null,null,null,null,null,null,null,null,null,null,null,null,null,"Schulferien KV",null,null,null,null,null,null,null,null,null,null,null,null,null,null,null,null,null,null,null,null,null,null,null,null,null,null,null,null,null,null,null,null,null,"Schulferien KV",null,null,null,null,null,null,null,null,null,null,null,null,null,null,null,null,null,null,null,null,null,null,null,null,null,null,null,null,null,null,null,null,"Schulferien KV",null,null,null,null,null,null,null,null,null,null,null,null,null,null,null,null,null,null,null,null,null,null,null,null,null,null,null,null,null,null,null,null,null,"Schulferien KV",null,null,null,null,null,null,null,null,null,null,null,null,null,null,null,null,null,null,null,null,null,null,null,null,null,null,null,null,null,null,null,null,null,"Schulferien KV",null,null,null,null,null,null,null,null,null,null,null,null,null,null,null,null,null,null,null,null,null,null,null,null,null,null,null,null,null,null,null,null,"Schulferien KV",null,null,null,null,null,null,null,null,null,null,null,null,null,null,null,null,null,null,null,null,null,null,null,null,null,null,null,null,null,null,null,null,null,"Schulferien KV",null,null,null,null,null,null,null,null,null,null,null,null,null,null,null,null,null,null,null,null,null,null,null,null,null,null,null,null,null,null,null,null,"Schulferien KV"]
["Schulferien Kälte","Schulferien Planer/Monteure",null,null,null,null,null,null,null,null,null,null,null,null,null,null,null,null,null,null,null,null,null,null,null,null,null,null,null,null,null,null,null,null,null,"Schulferien Planer/Monteure",null,null,null,null,null,null,null,null,null,null,null,null,null,null,null,null,null,null,null,null,null,null,null,null,null,null,null,null,null,null,null,"Schulferien Planer/Monteure",null,null,null,null,null,null,null,null,null,null,null,null,null,null,null,null,null,null,null,null,null,null,null,null,null,null,null,null,null,null,null,null,null,"Schulferien Planer/Monteure",null,null,null,null,null,null,null,null,null,null,null,null,null,null,null,null,null,null,null,null,null,null,null,null,null,null,null,null,null,null,null,null,"Schulferien Planer/Monteure",null,null,null,null,null,null,null,null,null,null,null,null,null,null,null,null,null,null,null,null,null,null,null,null,null,null,null,null,null,null,null,null,null,"Schulferien Planer/Monteure",null,null,null,null,null,null,null,null,null,null,null,null,null,null,null,null,null,null,null,null,null,null,null,null,null,null,null,null,null,null,null,null,"Schulferien Planer/Monteure",null,null,null,null,null,null,null,null,null,null,null,null,null,null,null,null,null,null,null,null,null,null,null,null,null,null,null,null,null,null,null,null,null,"Schulferien Planer/Monteure",null,null,null,null,null,null,null,null,null,null,null,null,null,null,null,null,null,null,null,null,null,null,null,null,null,null,null,null,null,null,null,null,null,"Schulferien Planer/Monteure",null,null,null,null,null,null,null,null,null,null,null,null,null,null,null,null,null,null,null,null,null,null,null,null,null,null,null,null,null,null,null,null,"Schulferien Planer/Monteure",null,null,null,null,null,null,null,null,null,null,null,null,null,null,null,null,null,null,null,null,null,null,null,null,null,null,null,null,null,null,null,null,null,"Schulferien Planer/Monteure",null,null,null,null,null,null,null,null,null,null,null,null,null,null,null,null,null,null,null,null,null,null,null,null,null,null,null,null,null,null,null,null,"Schulferien Planer/Monteure"]
[]
["Verkauf","Verkauf","Verkauf",null,null,null,null,null,null,null,null,null,null,null,null,null,null,null,null,null,null,null,null,null,null,null,null,null,null,null,null,null,null,null,null,"Verkauf",null,null,null,null,null,null,null,null,null,null,null,null,null,null,null,null,null,null,null,null,null,null,null,null,null,null,null,null,null,null,null,"Verkauf",null,null,null,null,null,null,null,null,null,null,null,null,null,null,null,null,null,null,null,null,null,null,null,null,null,null,null,null,null,null,null,null,null,"Verkauf",null,null,null,null,null,null,null,null,null,null,null,null,null,null,null,null,null,null,null,null,null,null,null,null,null,null,null,null,null,null,null,null,"Verkauf",null,null,null,null,null,null,null,null,null,null,null,null,null,null,null,null,null,null,null,null,null,null,null,null,null,null,null,null,null,null,null,null,null,"Verkauf",null,null,null,null,null,null,null,null,null,null,null,null,null,null,null,null,null,null,null,null,null,null,null,null,null,null,null,null,null,null,null,null,"Verkauf",null,null,null,null,null,null,null,null,null,null,null,null,null,null,null,null,null,null,null,null,null,null,null,null,null,null,null,null,null,null,null,null,null,"Verkauf",null,null,null,null,null,null,null,null,null,null,null,null,null,null,null,null,null,null,null,null,null,null,null,null,null,null,null,null,null,null,null,null,null,"Verkauf",null,null,null,null,null,null,null,null,null,null,null,null,null,null,null,null,null,null,null,null,null,null,null,null,null,null,null,null,null,null,null,null,"Verkauf",null,null,null,null,null,null,null,null,null,null,null,null,null,null,null,null,null,null,null,null,null,null,null,null,null,null,null,null,null,null,null,null,null,"Verkauf",null,null,null,null,null,null,null,null,null,null,null,null,null,null,null,null,null,null,null,null,null,null,null,null,null,null,null,null,null,null,null,null,"Verkauf"]
["Verkauf"]
["Verkauf"]
["Verkauf"]
["Verkauf"]
["Verkauf"]
[]
["Handel","Handel","Handel",null,null,null,null,null,null,null,null,null,null,null,null,null,null,null,null,null,null,null,null,null,null,null,null,null,null,null,null,null,null,null,null,"Handel",null,null,null,null,null,null,null,null,null,null,null,null,null,null,null,null,null,null,null,null,null,null,null,null,null,null,null,null,null,null,null,"Handel",null,null,null,null,null,null,null,null,null,null,null,null,null,null,null,null,null,null,null,null,null,null,null,null,null,null,null,null,null,null,null,null,null,"Handel",null,null,null,null,null,null,null,null,null,null,null,null,null,null,null,null,null,null,null,null,null,null,null,null,null,null,null,null,null,null,null,null,"Handel",null,null,null,null,null,null,null,null,null,null,null,null,null,null,null,null,null,null,null,null,null,null,null,null,null,null,null,null,null,null,null,null,null,"Handel",null,null,null,null,null,null,null,null,null,null,null,null,null,null,null,null,null,null,null,null,null,null,null,null,null,null,null,null,null,null,null,null,"Handel",null,null,null,null,null,null,null,null,null,null,null,null,null,null,null,null,null,null,null,null,null,null,null,null,null,null,null,null,null,null,null,null,null,"Handel",null,null,null,null,null,null,null,null,null,null,null,null,null,null,null,null,null,null,null,null,null,null,null,null,null,null,null,null,null,null,null,null,null,"Handel",null,null,null,null,null,null,null,null,null,null,null,null,null,null,null,null,null,null,null,null,null,null,null,null,null,null,null,null,null,null,null,null,"Handel",null,null,null,null,null,null,null,null,null,null,null,null,null,null,null,null,null,null,null,null,null,null,null,null,null,null,null,null,null,null,null,null,null,"Handel",null,null,null,null,null,null,null,null,null,null,null,null,null,null,null,null,null,null,null,null,null,null,null,null,null,null,null,null,null,null,null,null,"Handel"]
["Handel"]
["Handel"]
["Handel"]
["Handel"]
["Handel"]
[]
["Administration","Administration","Admin",null,null,null,null,null,null,null,null,null,null,null,null,null,null,null,null,null,null,null,null,null,null,null,null,null,null,null,null,null,null,null,null,"Administration",null,null,null,null,null,null,null,null,null,null,null,null,null,null,null,null,null,null,null,null,null,null,null,null,null,null,null,null,null,null,null,"Administration",null,null,null,null,null,null,null,null,null,null,null,null,null,null,null,null,null,null,null,null,null,null,null,null,null,null,null,null,null,null,null,null,null,"Administration",null,null,null,null,null,null,null,null,null,null,null,null,null,null,null,null,null,null,null,null,null,null,null,null,null,null,null,null,null,null,null,null,"Administration",null,null,null,null,null,null,null,null,null,null,null,null,null,null,null,null,null,null,null,null,null,null,null,null,null,null,null,null,null,null,null,null,null,"Administration",null,null,null,null,null,null,null,null,null,null,null,null,null,null,null,null,null,null,null,null,null,null,null,null,null,null,null,null,null,null,null,null,"Administration",null,null,null,null,null,null,null,null,null,null,null,null,null,null,null,null,null,null,null,null,null,null,null,null,null,null,null,null,null,null,null,null,null,"Administration",null,null,null,null,null,null,null,null,null,null,null,null,null,null,null,null,null,null,null,null,null,null,null,null,null,null,null,null,null,null,null,null,null,"Administration",null,null,null,null,null,null,null,null,null,null,null,null,null,null,null,null,null,null,null,null,null,null,null,null,null,null,null,null,null,null,null,null,"Administration",null,null,null,null,null,null,null,null,null,null,null,null,null,null,null,null,null,null,null,null,null,null,null,null,null,null,null,null,null,null,null,null,null,"Administration",null,null,null,null,null,null,null,null,null,null,null,null,null,null,null,null,null,null,null,null,null,null,null,null,null,null,null,null,null,null,null,null,"Administration"]
["Administration"]
["Administration"]
["Administration"]
["Administration"]
["Administration"]
[null,null,"Lernende",null,null,null,null,null,null,null,null,null,null,null,null,null,null,null,null,null,null,null,null,null,null,null,null,null,null,null,null,null,null,null,null,null,"Lernende",null,null,null,null,null,null,null,null,null,null,null,null,null,null,null,null,null,null,null,null,null,null,null,null,null,null,null,null,null,null,null,"Lernende",null,null,null,null,null,null,null,null,null,null,null,null,null,null,null,null,null,null,null,null,null,null,null,null,null,null,null,null,null,null,null,null,null,"Lernende",null,null,null,null,null,null,null,null,null,null,null,null,null,null,null,null,null,null,null,null,null,null,null,null,null,null,null,null,null,null,null,null,"Lernende",null,null,null,null,null,null,null,null,null,null,null,null,null,null,null,null,null,null,null,null,null,null,null,null,null,null,null,null,null,null,null,null,null,"Lernende",null,null,null,null,null,null,null,null,null,null,null,null,null,null,null,null,null,null,null,null,null,null,null,null,null,null,null,null,null,null,null,null,"Lernende",null,null,null,null,null,null,null,null,null,null,null,null,null,null,null,null,null,null,null,null,null,null,null,null,null,null,null,null,null,null,null,null,null,"Lernende",null,null,null,null,null,null,null,null,null,null,null,null,null,null,null,null,null,null,null,null,null,null,null,null,null,null,null,null,null,null,null,null,null,"Lernende",null,null,null,null,null,null,null,null,null,null,null,null,null,null,null,null,null,null,null,null,null,null,null,null,null,null,null,null,null,null,null,null,"Lernende",null,null,null,null,null,null,null,null,null,null,null,null,null,null,null,null,null,null,null,null,null,null,null,null,null,null,null,null,null,null,null,null,null,"Lernende",null,null,null,null,null,null,null,null,null,null,null,null,null,null,null,null,null,null,null,null,null,null,null,null,null,null,null,null,null,null,null,null,"Lernende"]
["Administration"]
["Administration"]
["Administration"]
["Administration"]
["Administration"]
[]
["Technisches Büro","Technisches Büro","TB",null,null,null,null,null,null,null,null,null,null,null,null,null,null,null,null,null,null,null,null,null,null,null,null,null,null,null,null,null,null,null,null,"Technisches Büro",null,null,null,null,null,null,null,null,null,null,null,null,null,null,null,null,null,null,null,null,null,null,null,null,null,null,null,null,null,null,null,"Technisches Büro",null,null,null,null,null,null,null,null,null,null,null,null,null,null,null,null,null,null,null,null,null,null,null,null,null,null,null,null,null,null,null,null,null,"Technisches Büro",null,null,null,null,null,null,null,null,null,null,null,null,null,null,null,null,null,null,null,null,null,null,null,null,null,null,null,null,null,null,null,null,"Technisches Büro",null,null,null,null,null,null,null,null,null,null,null,null,null,null,null,null,null,null,null,null,null,null,null,null,null,null,null,null,null,null,null,null,null,"Technisches Büro",null,null,null,null,null,null,null,null,null,null,null,null,null,null,null,null,null,null,null,null,null,null,null,null,null,null,null,null,null,null,null,null,"Technisches Büro",null,null,null,null,null,null,null,null,null,null,null,null,null,null,null,null,null,null,null,null,null,null,null,null,null,null,null,null,null,null,null,null,null,"Technisches Büro",null,null,null,null,null,null,null,null,null,null,null,null,null,null,null,null,null,null,null,null,null,null,null,null,null,null,null,null,null,null,null,null,null,"Technisches Büro",null,null,null,null,null,null,null,null,null,null,null,null,null,null,null,null,null,null,null,null,null,null,null,null,null,null,null,null,null,null,null,null,"Technisches Büro",null,null,null,null,null,null,null,null,null,null,null,null,null,null,null,null,null,null,null,null,null,null,null,null,null,null,null,null,null,null,null,null,null,"Technisches Büro",null,null,null,null,null,null,null,null,null,null,null,null,null,null,null,null,null,null,null,null,null,null,null,null,null,null,null,null,null,null,null,null,"Technisches Büro"]
["Technisches Büro"]
["Technisches Büro"]
["Technisches Büro"]
["Technisches Büro"]
["Technisches Büro"]
["Technisches Büro"]
["Technisches Büro"]
["Technisches Büro"]
["Technisches Büro"]
[null,null,"Lernende",null,null,null,null,null,null,null,null,null,null,null,null,null,null,null,null,null,null,null,null,null,null,null,null,null,null,null,null,null,null,null,null,null,"Lernende",null,null,null,null,null,null,null,null,null,null,null,null,null,null,null,null,null,null,null,null,null,null,null,null,null,null,null,null,null,null,null,"Lernende",null,null,null,null,null,null,null,null,null,null,null,null,null,null,null,null,null,null,null,null,null,null,null,null,null,null,null,null,null,null,null,null,null,"Lernende",null,null,null,null,null,null,null,null,null,null,null,null,null,null,null,null,null,null,null,null,null,null,null,null,null,null,null,null,null,null,null,null,"Lernende",null,null,null,null,null,null,null,null,null,null,null,null,null,null,null,null,null,null,null,null,null,null,null,null,null,null,null,null,null,null,null,null,null,"Lernende",null,null,null,null,null,null,null,null,null,null,null,null,null,null,null,null,null,null,null,null,null,null,null,null,null,null,null,null,null,null,null,null,"Lernende",null,null,null,null,null,null,null,null,null,null,null,null,null,null,null,null,null,null,null,null,null,null,null,null,null,null,null,null,null,null,null,null,null,"Lernende",null,null,null,null,null,null,null,null,null,null,null,null,null,null,null,null,null,null,null,null,null,null,null,null,null,null,null,null,null,null,null,null,null,"Lernende",null,null,null,null,null,null,null,null,null,null,null,null,null,null,null,null,null,null,null,null,null,null,null,null,null,null,null,null,null,null,null,null,"Lernende",null,null,null,null,null,null,null,null,null,null,null,null,null,null,null,null,null,null,null,null,null,null,null,null,null,null,null,null,null,null,null,null,null,"Lernende",null,null,null,null,null,null,null,null,null,null,null,null,null,null,null,null,null,null,null,null,null,null,null,null,null,null,null,null,null,null,null,null,"Lernende"]
["Technisches Büro"]
["Technisches Büro"]
["Technisches Büro"]
["Technisches Büro"]
["Technisches Büro"]
[null,null,"Sirnach",null,null,null,null,null,null,null,null,null,null,null,null,null,null,null,null,null,null,null,null,null,null,null,null,null,null,null,null,null,null,null,null,null,"Sirnach",null,null,null,null,null,null,null,null,null,null,null,null,null,null,null,null,null,null,null,null,null,null,null,null,null,null,null,null,null,null,null,"Sirnach",null,null,null,null,null,null,null,null,null,null,null,null,null,null,null,null,null,null,null,null,null,null,null,null,null,null,null,null,null,null,null,null,null,"Sirnach",null,null,null,null,null,null,null,null,null,null,null,null,null,null,null,null,null,null,null,null,null,null,null,null,null,null,null,null,null,null,null,null,"Sirnach",null,null,null,null,null,null,null,null,null,null,null,null,null,null,null,null,null,null,null,null,null,null,null,null,null,null,null,null,null,null,null,null,null,"Sirnach",null,null,null,null,null,null,null,null,null,null,null,null,null,null,null,null,null,null,null,null,null,null,null,null,null,null,null,null,null,null,null,null,"Sirnach",null,null,null,null,null,null,null,null,null,null,null,null,null,null,null,null,null,null,null,null,null,null,null,null,null,null,null,null,null,null,null,null,null,"Sirnach",null,null,null,null,null,null,null,null,null,null,null,null,null,null,null,null,null,null,null,null,null,null,null,null,null,null,null,null,null,null,null,null,null,"Sirnach",null,null,null,null,null,null,null,null,null,null,null,null,null,null,null,null,null,null,null,null,null,null,null,null,null,null,null,null,null,null,null,null,"Sirnach",null,null,null,null,null,null,null,null,null,null,null,null,null,null,null,null,null,null,null,null,null,null,null,null,null,null,null,null,null,null,null,null,null,"Sirnach",null,null,null,null,null,null,null,null,null,null,null,null,null,null,null,null,null,null,null,null,null,null,null,null,null,null,null,null,null,null,null,null,"Sirnach"]
["Technisches Büro"]
["Technisches Büro"]
["Technisches Büro"]
["Technisches Büro"]
["Technisches Büro"]
["Technisches Büro"]
[null,null,"Ersingen",null,null,null,null,null,null,null,null,null,null,null,null,null,null,null,null,null,null,null,null,null,null,null,null,null,null,null,null,null,null,null,null,null,"Ersingen",null,null,null,null,null,null,null,null,null,null,null,null,null,null,null,null,null,null,null,null,null,null,null,null,null,null,null,null,null,null,null,"Ersingen",null,null,null,null,null,null,null,null,null,null,null,null,null,null,null,null,null,null,null,null,null,null,null,null,null,null,null,null,null,null,null,null,null,"Ersingen",null,null,null,null,null,null,null,null,null,null,null,null,null,null,null,null,null,null,null,null,null,null,null,null,null,null,null,null,null,null,null,null,"Ersingen",null,null,null,null,null,null,null,null,null,null,null,null,null,null,null,null,null,null,null,null,null,null,null,null,null,null,null,null,null,null,null,null,null,"Ersingen",null,null,null,null,null,null,null,null,null,null,null,null,null,null,null,null,null,null,null,null,null,null,null,null,null,null,null,null,null,null,null,null,"Ersingen",null,null,null,null,null,null,null,null,null,null,null,null,null,null,null,null,null,null,null,null,null,null,null,null,null,null,null,null,null,null,null,null,null,"Ersingen",null,null,null,null,null,null,null,null,null,null,null,null,null,null,null,null,null,null,null,null,null,null,null,null,null,null,null,null,null,null,null,null,null,"Ersingen",null,null,null,null,null,null,null,null,null,null,null,null,null,null,null,null,null,null,null,null,null,null,null,null,null,null,null,null,null,null,null,null,"Ersingen",null,null,null,null,null,null,null,null,null,null,null,null,null,null,null,null,null,null,null,null,null,null,null,null,null,null,null,null,null,null,null,null,null,"Ersingen",null,null,null,null,null,null,null,null,null,null,null,null,null,null,null,null,null,null,null,null,null,null,null,null,null,null,null,null,null,null,null,null,"Ersingen"]
["Technisches Büro"]
["Technisches Büro"]
["Technisches Büro"]
["Technisches Büro"]
["Technisches Büro"]
["Technisches Büro"]
["Technisches Büro"]
[]
["Elektroengineering","Elektroengineering","Elektro",null,null,null,null,null,null,null,null,null,null,null,null,null,null,null,null,null,null,null,null,null,null,null,null,null,null,null,null,null,null,null,null,"Elektroengineering",null,null,null,null,null,null,null,null,null,null,null,null,null,null,null,null,null,null,null,null,null,null,null,null,null,null,null,null,null,null,null,"Elektroengineering",null,null,null,null,null,null,null,null,null,null,null,null,null,null,null,null,null,null,null,null,null,null,null,null,null,null,null,null,null,null,null,null,null,"Elektroengineering",null,null,null,null,null,null,null,null,null,null,null,null,null,null,null,null,null,null,null,null,null,null,null,null,null,null,null,null,null,null,null,null,"Elektroengineering",null,null,null,null,null,null,null,null,null,null,null,null,null,null,null,null,null,null,null,null,null,null,null,null,null,null,null,null,null,null,null,null,null,"Elektroengineering",null,null,null,null,null,null,null,null,null,null,null,null,null,null,null,null,null,null,null,null,null,null,null,null,null,null,null,null,null,null,null,null,"Elektroengineering",null,null,null,null,null,null,null,null,null,null,null,null,null,null,null,null,null,null,null,null,null,null,null,null,null,null,null,null,null,null,null,null,null,"Elektroengineering",null,null,null,null,null,null,null,null,null,null,null,null,null,null,null,null,null,null,null,null,null,null,null,null,null,null,null,null,null,null,null,null,null,"Elektroengineering",null,null,null,null,null,null,null,null,null,null,null,null,null,null,null,null,null,null,null,null,null,null,null,null,null,null,null,null,null,null,null,null,"Elektroengineering",null,null,null,null,null,null,null,null,null,null,null,null,null,null,null,null,null,null,null,null,null,null,null,null,null,null,null,null,null,null,null,null,null,"Elektroengineering",null,null,null,null,null,null,null,null,null,null,null,null,null,null,null,null,null,null,null,null,null,null,null,null,null,null,null,null,null,null,null,null,"Elektroengineering"]
["Elektroengineering"]
["Elektroengineering"]
["Elektroengineering"]
["Elektroengineering"]
["Elektroengineering"]
[]
["Service / Kundendienst / Disposition","Service / Kundendienst / Disposition","Service",null,null,null,null,null,null,null,null,null,null,null,null,null,null,null,null,null,null,null,null,null,null,null,null,null,null,null,null,null,null,null,null,"Service / Kundendienst / Disposition",null,null,null,null,null,null,null,null,null,null,null,null,null,null,null,null,null,null,null,null,null,null,null,null,null,null,null,null,null,null,null,"Service / Kundendienst / Disposition",null,null,null,null,null,null,null,null,null,null,null,null,null,null,null,null,null,null,null,null,null,null,null,null,null,null,null,null,null,null,null,null,null,"Service / Kundendienst / Disposition",null,null,null,null,null,null,null,null,null,null,null,null,null,null,null,null,null,null,null,null,null,null,null,null,null,null,null,null,null,null,null,null,"Service / Kundendienst / Disposition",null,null,null,null,null,null,null,null,null,null,null,null,null,null,null,null,null,null,null,null,null,null,null,null,null,null,null,null,null,null,null,null,null,"Service / Kundendienst / Disposition",null,null,null,null,null,null,null,null,null,null,null,null,null,null,null,null,null,null,null,null,null,null,null,null,null,null,null,null,null,null,null,null,"Service / Kundendienst / Disposition",null,null,null,null,null,null,null,null,null,null,null,null,null,null,null,null,null,null,null,null,null,null,null,null,null,null,null,null,null,null,null,null,null,"Service / Kundendienst / Disposition",null,null,null,null,null,null,null,null,null,null,null,null,null,null,null,null,null,null,null,null,null,null,null,null,null,null,null,null,null,null,null,null,null,"Service / Kundendienst / Disposition",null,null,null,null,null,null,null,null,null,null,null,null,null,null,null,null,null,null,null,null,null,null,null,null,null,null,null,null,null,null,null,null,"Service / Kundendienst / Disposition",null,null,null,null,null,null,null,null,null,null,null,null,null,null,null,null,null,null,null,null,null,null,null,null,null,null,null,null,null,null,null,null,null,"Service / Kundendienst / Disposition",null,null,null,null,null,null,null,null,null,null,null,null,null,null,null,null,null,null,null,null,null,null,null,null,null,null,null,null,null,null,null,null,"Service / Kundendienst / Disposition"]
["Service / Kundendienst / Disposition"]
["Service / Kundendienst / Disposition"]
["Service / Kundendienst / Disposition"]
["Service / Kundendienst / Disposition"]
["Service / Kundendienst / Disposition"]
["Service / Kundendienst / Disposition"]
["Service / Kundendienst / Disposition"]
["Service / Kundendienst / Disposition"]
["Service / Kundendienst / Disposition"]
[null,null,"Techniker",null,null,null,null,null,null,null,null,null,null,null,null,null,null,null,null,null,null,null,null,null,null,null,null,null,null,null,null,null,null,null,null,null,"Techniker",null,null,null,null,null,null,null,null,null,null,null,null,null,null,null,null,null,null,null,null,null,null,null,null,null,null,null,null,null,null,null,"Techniker",null,null,null,null,null,null,null,null,null,null,null,null,null,null,null,null,null,null,null,null,null,null,null,null,null,null,null,null,null,null,null,null,null,"Techniker",null,null,null,null,null,null,null,null,null,null,null,null,null,null,null,null,null,null,null,null,null,null,null,null,null,null,null,null,null,null,null,null,"Techniker",null,null,null,null,null,null,null,null,null,null,null,null,null,null,null,null,null,null,null,null,null,null,null,null,null,null,null,null,null,null,null,null,null,"Techniker",null,null,null,null,null,null,null,null,null,null,null,null,null,null,null,null,null,null,null,null,null,null,null,null,null,null,null,null,null,null,null,null,"Techniker",null,null,null,null,null,null,null,null,null,null,null,null,null,null,null,null,null,null,null,null,null,null,null,null,null,null,null,null,null,null,null,null,null,"Techniker",null,null,null,null,null,null,null,null,null,null,null,null,null,null,null,null,null,null,null,null,null,null,null,null,null,null,null,null,null,null,null,null,null,"Techniker",null,null,null,null,null,null,null,null,null,null,null,null,null,null,null,null,null,null,null,null,null,null,null,null,null,null,null,null,null,null,null,null,"Techniker",null,null,null,null,null,null,null,null,null,null,null,null,null,null,null,null,null,null,null,null,null,null,null,null,null,null,null,null,null,null,null,null,null,"Techniker",null,null,null,null,null,null,null,null,null,null,null,null,null,null,null,null,null,null,null,null,null,null,null,null,null,null,null,null,null,null,null,null,"Techniker"]
["Service / Kundendienst / Disposition"]
["Service / Kundendienst / Disposition"]
["Service / Kundendienst / Disposition"]
["Service / Kundendienst / Disposition"]
["Service / Kundendienst / Disposition"]
["Service / Kundendienst / Disposition"]
["Service / Kundendienst / Disposition"]
["Service / Kundendienst / Disposition"]
["Service / Kundendienst / Disposition"]
["Service / Kundendienst / Disposition"]
["Service / Kundendienst / Disposition"]
["Service / Kundendienst / Disposition"]
["Service / Kundendienst / Disposition"]
["Service / Kundendienst / Disposition"]
["Service / Kundendienst / Disposition"]
["Service / Kundendienst / Disposition"]
["Service / Kundendienst / Disposition"]
["Service / Kundendienst / Disposition"]
["Service / Kundendienst / Disposition"]
["Service / Kundendienst / Disposition"]
[]
["Wartung","Wartung","Wartung",null,null,null,null,null,null,null,null,null,null,null,null,null,null,null,null,null,null,null,null,null,null,null,null,null,null,null,null,null,null,null,null,"Wartung",null,null,null,null,null,null,null,null,null,null,null,null,null,null,null,null,null,null,null,null,null,null,null,null,null,null,null,null,null,null,null,"Wartung",null,null,null,null,null,null,null,null,null,null,null,null,null,null,null,null,null,null,null,null,null,null,null,null,null,null,null,null,null,null,null,null,null,"Wartung",null,null,null,null,null,null,null,null,null,null,null,null,null,null,null,null,null,null,null,null,null,null,null,null,null,null,null,null,null,null,null,null,"Wartung",null,null,null,null,null,null,null,null,null,null,null,null,null,null,null,null,null,null,null,null,null,null,null,null,null,null,null,null,null,null,null,null,null,"Wartung",null,null,null,null,null,null,null,null,null,null,null,null,null,null,null,null,null,null,null,null,null,null,null,null,null,null,null,null,null,null,null,null,"Wartung",null,null,null,null,null,null,null,null,null,null,null,null,null,null,null,null,null,null,null,null,null,null,null,null,null,null,null,null,null,null,null,null,null,"Wartung",null,null,null,null,null,null,null,null,null,null,null,null,null,null,null,null,null,null,null,null,null,null,null,null,null,null,null,null,null,null,null,null,null,"Wartung",null,null,null,null,null,null,null,null,null,null,null,null,null,null,null,null,null,null,null,null,null,null,null,null,null,null,null,null,null,null,null,null,"Wartung",null,null,null,null,null,null,null,null,null,null,null,null,null,null,null,null,null,null,null,null,null,null,null,null,null,null,null,null,null,null,null,null,null,"Wartung",null,null,null,null,null,null,null,null,null,null,null,null,null,null,null,null,null,null,null,null,null,null,null,null,null,null,null,null,null,null,null,null,"Wartung"]
["Wartung"]
["Wartung"]
["Wartung"]
[null,null,"Techniker",null,null,null,null,null,null,null,null,null,null,null,null,null,null,null,null,null,null,null,null,null,null,null,null,null,null,null,null,null,null,null,null,null,"Techniker",null,null,null,null,null,null,null,null,null,null,null,null,null,null,null,null,null,null,null,null,null,null,null,null,null,null,null,null,null,null,null,"Techniker",null,null,null,null,null,null,null,null,null,null,null,null,null,null,null,null,null,null,null,null,null,null,null,null,null,null,null,null,null,null,null,null,null,"Techniker",null,null,null,null,null,null,null,null,null,null,null,null,null,null,null,null,null,null,null,null,null,null,null,null,null,null,null,null,null,null,null,null,"Techniker",null,null,null,null,null,null,null,null,null,null,null,null,null,null,null,null,null,null,null,null,null,null,null,null,null,null,null,null,null,null,null,null,null,"Techniker",null,null,null,null,null,null,null,null,null,null,null,null,null,null,null,null,null,null,null,null,null,null,null,null,null,null,null,null,null,null,null,null,"Techniker",null,null,null,null,null,null,null,null,null,null,null,null,null,null,null,null,null,null,null,null,null,null,null,null,null,null,null,null,null,null,null,null,null,"Techniker",null,null,null,null,null,null,null,null,null,null,null,null,null,null,null,null,null,null,null,null,null,null,null,null,null,null,null,null,null,null,null,null,null,"Techniker",null,null,null,null,null,null,null,null,null,null,null,null,null,null,null,null,null,null,null,null,null,null,null,null,null,null,null,null,null,null,null,null,"Techniker",null,null,null,null,null,null,null,null,null,null,null,null,null,null,null,null,null,null,null,null,null,null,null,null,null,null,null,null,null,null,null,null,null,"Techniker",null,null,null,null,null,null,null,null,null,null,null,null,null,null,null,null,null,null,null,null,null,null,null,null,null,null,null,null,null,null,null,null,"Techniker"]
["Wartung"]
["Wartung"]
["Wartung"]
["Wartung"]
["Wartung"]
["Wartung"]
["Wartung"]
["Wartung"]
["Wartung"]
["Wartung"]
[]
["Lager","Lager","Lager",null,null,null,null,null,null,null,null,null,null,null,null,null,null,null,null,null,null,null,null,null,null,null,null,null,null,null,null,null,null,null,null,"Lager",null,null,null,null,null,null,null,null,null,null,null,null,null,null,null,null,null,null,null,null,null,null,null,null,null,null,null,null,null,null,null,"Lager",null,null,null,null,null,null,null,null,null,null,null,null,null,null,null,null,null,null,null,null,null,null,null,null,null,null,null,null,null,null,null,null,null,"Lager",null,null,null,null,null,null,null,null,null,null,null,null,null,null,null,null,null,null,null,null,null,null,null,null,null,null,null,null,null,null,null,null,"Lager",null,null,null,null,null,null,null,null,null,null,null,null,null,null,null,null,null,null,null,null,null,null,null,null,null,null,null,null,null,null,null,null,null,"Lager",null,null,null,null,null,null,null,null,null,null,null,null,null,null,null,null,null,null,null,null,null,null,null,null,null,null,null,null,null,null,null,null,"Lager",null,null,null,null,null,null,null,null,null,null,null,null,null,null,null,null,null,null,null,null,null,null,null,null,null,null,null,null,null,null,null,null,null,"Lager",null,null,null,null,null,null,null,null,null,null,null,null,null,null,null,null,null,null,null,null,null,null,null,null,null,null,null,null,null,null,null,null,null,"Lager",null,null,null,null,null,null,null,null,null,null,null,null,null,null,null,null,null,null,null,null,null,null,null,null,null,null,null,null,null,null,null,null,"Lager",null,null,null,null,null,null,null,null,null,null,null,null,null,null,null,null,null,null,null,null,null,null,null,null,null,null,null,null,null,null,null,null,null,"Lager",null,null,null,null,null,null,null,null,null,null,null,null,null,null,null,null,null,null,null,null,null,null,null,null,null,null,null,null,null,null,null,null,"Lager"]
["Lager"]
["Lager"]
["Lager"]
["Lager"]
["Lager"]
[]
["Montage","Montage","Montage",null,null,null,null,null,null,null,null,null,null,null,null,null,null,null,null,null,null,null,null,null,null,null,null,null,null,null,null,null,null,null,null,"Montage",null,null,null,null,null,null,null,null,null,null,null,null,null,null,null,null,null,null,null,null,null,null,null,null,null,null,null,null,null,null,null,"Montage",null,null,null,null,null,null,null,null,null,null,null,null,null,null,null,null,null,null,null,null,null,null,null,null,null,null,null,null,null,null,null,null,null,"Montage",null,null,null,null,null,null,null,null,null,null,null,null,null,null,null,null,null,null,null,null,null,null,null,null,null,null,null,null,null,null,null,null,"Montage",null,null,null,null,null,null,null,null,null,null,null,null,null,null,null,null,null,null,null,null,null,null,null,null,null,null,null,null,null,null,null,null,null,"Montage",null,null,null,null,null,null,null,null,null,null,null,null,null,null,null,null,null,null,null,null,null,null,null,null,null,null,null,null,null,null,null,null,"Montage",null,null,null,null,null,null,null,null,null,null,null,null,null,null,null,null,null,null,null,null,null,null,null,null,null,null,null,null,null,null,null,null,null,"Montage",null,null,null,null,null,null,null,null,null,null,null,null,null,null,null,null,null,null,null,null,null,null,null,null,null,null,null,null,null,null,null,null,null,"Montage",null,null,null,null,null,null,null,null,null,null,null,null,null,null,null,null,null,null,null,null,null,null,null,null,null,null,null,null,null,null,null,null,"Montage",null,null,null,null,null,null,null,null,null,null,null,null,null,null,null,null,null,null,null,null,null,null,null,null,null,null,null,null,null,null,null,null,null,"Montage",null,null,null,null,null,null,null,null,null,null,null,null,null,null,null,null,null,null,null,null,null,null,null,null,null,null,null,null,null,null,null,null,"Montage"]
["Montage"]
["Montage"]
["Montage"]
["Montage"]
["Montage"]
["Montage"]
["Montage"]
["Montage"]
["Montage"]
["Montage"]
["Montage"]
["Montage"]
["Montage"]
["Montage"]
["Montage"]
["Montage"]
["Montage"]
["Montage"]
["Montage"]
[null,null,"Lernende",null,null,null,null,null,null,null,null,null,null,null,null,null,null,null,null,null,null,null,null,null,null,null,null,null,null,null,null,null,null,null,null,null,"Lernende",null,null,null,null,null,null,null,null,null,null,null,null,null,null,null,null,null,null,null,null,null,null,null,null,null,null,null,null,null,null,null,"Lernende",null,null,null,null,null,null,null,null,null,null,null,null,null,null,null,null,null,null,null,null,null,null,null,null,null,null,null,null,null,null,null,null,null,"Lernende",null,null,null,null,null,null,null,null,null,null,null,null,null,null,null,null,null,null,null,null,null,null,null,null,null,null,null,null,null,null,null,null,"Lernende",null,null,null,null,null,null,null,null,null,null,null,null,null,null,null,null,null,null,null,null,null,null,null,null,null,null,null,null,null,null,null,null,null,"Lernende",null,null,null,null,null,null,null,null,null,null,null,null,null,null,null,null,null,null,null,null,null,null,null,null,null,null,null,null,null,null,null,null,"Lernende",null,null,null,null,null,null,null,null,null,null,null,null,null,null,null,null,null,null,null,null,null,null,null,null,null,null,null,null,null,null,null,null,null,"Lernende",null,null,null,null,null,null,null,null,null,null,null,null,null,null,null,null,null,null,null,null,null,null,null,null,null,null,null,null,null,null,null,null,null,"Lernende",null,null,null,null,null,null,null,null,null,null,null,null,null,null,null,null,null,null,null,null,null,null,null,null,null,null,null,null,null,null,null,null,"Lernende",null,null,null,null,null,null,null,null,null,null,null,null,null,null,null,null,null,null,null,null,null,null,null,null,null,null,null,null,null,null,null,null,null,"Lernende",null,null,null,null,null,null,null,null,null,null,null,null,null,null,null,null,null,null,null,null,null,null,null,null,null,null,null,null,null,null,null,null,"Lernende"]
["Montage"]
["Montage"]
["Montage"]
["Montage"]
["Montage"]
["Montage"]
["Montage"]
["Montage"]
["Montage"]
["Montage"]
[null,null,"Sirnach",null,null,null,null,null,null,null,null,null,null,null,null,null,null,null,null,null,null,null,null,null,null,null,null,null,null,null,null,null,null,null,null,null,"Sirnach",null,null,null,null,null,null,null,null,null,null,null,null,null,null,null,null,null,null,null,null,null,null,null,null,null,null,null,null,null,null,null,"Sirnach",null,null,null,null,null,null,null,null,null,null,null,null,null,null,null,null,null,null,null,null,null,null,null,null,null,null,null,null,null,null,null,null,null,"Sirnach",null,null,null,null,null,null,null,null,null,null,null,null,null,null,null,null,null,null,null,null,null,null,null,null,null,null,null,null,null,null,null,null,"Sirnach",null,null,null,null,null,null,null,null,null,null,null,null,null,null,null,null,null,null,null,null,null,null,null,null,null,null,null,null,null,null,null,null,null,"Sirnach",null,null,null,null,null,null,null,null,null,null,null,null,null,null,null,null,null,null,null,null,null,null,null,null,null,null,null,null,null,null,null,null,"Sirnach",null,null,null,null,null,null,null,null,null,null,null,null,null,null,null,null,null,null,null,null,null,null,null,null,null,null,null,null,null,null,null,null,null,"Sirnach",null,null,null,null,null,null,null,null,null,null,null,null,null,null,null,null,null,null,null,null,null,null,null,null,null,null,null,null,null,null,null,null,null,"Sirnach",null,null,null,null,null,null,null,null,null,null,null,null,null,null,null,null,null,null,null,null,null,null,null,null,null,null,null,null,null,null,null,null,"Sirnach",null,null,null,null,null,null,null,null,null,null,null,null,null,null,null,null,null,null,null,null,null,null,null,null,null,null,null,null,null,null,null,null,null,"Sirnach",null,null,null,null,null,null,null,null,null,null,null,null,null,null,null,null,null,null,null,null,null,null,null,null,null,null,null,null,null,null,null,null,"Sirnach"]
["Montage"]
["Montage"]
["Montage"]
["Montage"]
["Montage"]
["Montage"]
["Montage"]
["Montage"]
[null,null,"Ersingen",null,null,null,null,null,null,null,null,null,null,null,null,null,null,null,null,null,null,null,null,null,null,null,null,null,null,null,null,null,null,null,null,null,"Ersingen",null,null,null,null,null,null,null,null,null,null,null,null,null,null,null,null,null,null,null,null,null,null,null,null,null,null,null,null,null,null,null,"Ersingen",null,null,null,null,null,null,null,null,null,null,null,null,null,null,null,null,null,null,null,null,null,null,null,null,null,null,null,null,null,null,null,null,null,"Ersingen",null,null,null,null,null,null,null,null,null,null,null,null,null,null,null,null,null,null,null,null,null,null,null,null,null,null,null,null,null,null,null,null,"Ersingen",null,null,null,null,null,null,null,null,null,null,null,null,null,null,null,null,null,null,null,null,null,null,null,null,null,null,null,null,null,null,null,null,null,"Ersingen",null,null,null,null,null,null,null,null,null,null,null,null,null,null,null,null,null,null,null,null,null,null,null,null,null,null,null,null,null,null,null,null,"Ersingen",null,null,null,null,null,null,null,null,null,null,null,null,null,null,null,null,null,null,null,null,null,null,null,null,null,null,null,null,null,null,null,null,null,"Ersingen",null,null,null,null,null,null,null,null,null,null,null,null,null,null,null,null,null,null,null,null,null,null,null,null,null,null,null,null,null,null,null,null,null,"Ersingen",null,null,null,null,null,null,null,null,null,null,null,null,null,null,null,null,null,null,null,null,null,null,null,null,null,null,null,null,null,null,null,null,"Ersingen",null,null,null,null,null,null,null,null,null,null,null,null,null,null,null,null,null,null,null,null,null,null,null,null,null,null,null,null,null,null,null,null,null,"Ersingen",null,null,null,null,null,null,null,null,null,null,null,null,null,null,null,null,null,null,null,null,null,null,null,null,null,null,null,null,null,null,null,null,"Ersingen"]
["Montage"]
["Montage"]
["Montage"]
["Montage"]
["Montage"]
["Montage"]
["Montage"]
["Montage"]
["Montage"]
["Montage"]
["Montage"]
["Montage"]
["Montage"]
["Montage"]
["Montage",null,"Letzert"]
[]
[null,null,null,"Ferien",null,null,"Ferien 1/2",null,null,null,"Militär / Feuerwehr",null,null,null,null,"Absenzen bezahlt",null,null,null,null,"Krank Unfall",null,null,null,null,"Feiertag",null,null,"Wochenende",null,null,null,null,null,null,null,null,"Ferien",null,null,"Ferien 1/2",null,null,null,"Militär / Feuerwehr",null,null,null,null,"Absenzen bezahlt",null,null,null,null,"Krank Unfall",null,null,null,null,"Feiertag",null,null,"Wochenende",null,null,null,null,null,null,"Ferien",null,null,"Ferien 1/2",null,null,null,"Militär / Feuerwehr",null,null,null,null,"Absenzen bezahlt",null,null,null,null,"Krank Unfall",null,null,null,null,"Feiertag",null,null,"Wochenende",null,null,null,null,null,null,null,null,"Ferien",null,null,"Ferien 1/2",null,null,null,"Militär / Feuerwehr",null,null,null,null,"Absenzen bezahlt",null,null,null,null,"Krank Unfall",null,null,null,null,"Feiertag",null,null,"Wochenende",null,null,null,null,null,null,null,"Ferien",null,null,"Ferien 1/2",null,null,null,"Militär / Feuerwehr",null,null,null,null,"Absenzen bezahlt",null,null,null,null,"Krank Unfall",null,null,null,null,"Feiertag",null,null,"Wochenende",null,null,null,null,null,null,null,null,"Ferien",null,null,"Ferien 1/2",null,null,null,"Militär / Feuerwehr",null,null,null,null,"Absenzen bezahlt",null,null,null,null,"Krank Unfall",null,null,null,null,"Feiertag",null,null,"Wochenende",null,null,null,null,null,null,null,"Ferien",null,null,"Ferien 1/2",null,null,null,"Militär / Feuerwehr",null,null,null,null,"Absenzen bezahlt",null,null,null,null,"Krank Unfall",null,null,null,null,"Feiertag",null,null,"Wochenende",null,null,null,null,null,null,null,null,"Ferien",null,null,"Ferien 1/2",null,null,null,"Militär / Feuerwehr",null,null,null,null,"Absenzen bezahlt",null,null,null,null,"Krank Unfall",null,null,null,null,"Feiertag",null,null,"Wochenende",null,null,null,null,null,null,null,null,"Ferien",null,null,"Ferien 1/2",null,null,null,"Militär / Feuerwehr",null,null,null,null,"Absenzen bezahlt",null,null,null,null,"Krank Unfall",null,null,null,null,"Feiertag",null,null,"Wochenende",null,null,null,null,null,null,null,"Ferien",null,null,"Ferien 1/2",null,null,null,"Militär / Feuerwehr",null,null,null,null,"Absenzen bezahlt",null,null,null,null,"Krank Unfall",null,null,null,null,"Feiertag",null,null,"Wochenende",null,null,null,null,null,null,null,null,"Ferien",null,null,"Ferien 1/2",null,null,null,"Militär / Feuerwehr",null,null,null,null,"Absenzen bezahlt",null,null,null,null,"Krank Unfall",null,null,null,null,"Feiertag",null,null,"Wochenende",null,null,null,null,null,null,null,"Ferien",null,null,"Ferien 1/2",null,null,null,"Militär / Feuerwehr",null,null,null,null,"Absenzen bezahlt",null,null,null,null,"Krank Unfall",null,null,null,null,"Feiertag",null,null,"Wochenende"]

{"sheet":"Eintragung","index":1,"n_rows":354,"n_cols":2,"rows_kept":354,"cut":false,"hidden":false,"merged":[]}
[]
[{"$f":"Übersicht!C8","v":"Verkauf"},"2025-01-01"]
[null,"Ferien"]
[{"$f":"Übersicht!C9","v":0}]
[]
[{"$f":"Übersicht!C10","v":0}]
[]
[{"$f":"Übersicht!C11","v":0}]
[]
[{"$f":"Übersicht!C12","v":0}]
[]
[{"$f":"Übersicht!C13","v":0}]
[]
[{"$f":"Übersicht!C14","v":0}]
[]
[{"$f":"Übersicht!C15","v":"Handel"}]
[]
[{"$f":"Übersicht!C16","v":0}]
[]
[{"$f":"Übersicht!C17","v":0}]
[]
[{"$f":"Übersicht!C18","v":0}]
[]
[{"$f":"Übersicht!C19","v":0}]
[]
[{"$f":"Übersicht!C20","v":0}]
[]
[{"$f":"Übersicht!C21","v":0}]
[]
[{"$f":"Übersicht!C22","v":"Admin"}]
[]
[{"$f":"Übersicht!C23","v":0}]
[]
[{"$f":"Übersicht!C24","v":0}]
[]
[{"$f":"Übersicht!C25","v":0}]
[]
[{"$f":"Übersicht!C26","v":0}]
[]
[{"$f":"Übersicht!C27","v":0}]
[]
[{"$f":"Übersicht!C28","v":"Lernende"}]
[]
[{"$f":"Übersicht!C29","v":0}]
[]
[{"$f":"Übersicht!C30","v":0}]
[]
[{"$f":"Übersicht!C31","v":0}]
[]
[{"$f":"Übersicht!C32","v":0}]
[]
[{"$f":"Übersicht!C33","v":0}]
[]
[{"$f":"Übersicht!C34","v":0}]
[]
[{"$f":"Übersicht!C35","v":"TB"}]
[]
[{"$f":"Übersicht!C36","v":0}]
[]
[{"$f":"Übersicht!C37","v":0}]
[]
[{"$f":"Übersicht!C38","v":0}]
[]
[{"$f":"Übersicht!C39","v":0}]
[]
[{"$f":"Übersicht!C40","v":0}]
[]
[{"$f":"Übersicht!C41","v":0}]
[]
[{"$f":"Übersicht!C42","v":0}]
[]
[{"$f":"Übersicht!C43","v":0}]
[]
[{"$f":"Übersicht!C44","v":0}]
[]
[{"$f":"Übersicht!C45","v":"Lernende"}]
[]
[{"$f":"Übersicht!C46","v":0}]
[]
[{"$f":"Übersicht!C47","v":0}]
[]
[{"$f":"Übersicht!C48","v":0}]
[]
[{"$f":"Übersicht!C49","v":0}]
[]
[{"$f":"Übersicht!C50","v":0}]
[]
[{"$f":"Übersicht!C51","v":"Sirnach"}]
[]
[{"$f":"Übersicht!C52","v":0}]
[]
[{"$f":"Übersicht!C53","v":0}]
[]
[{"$f":"Übersicht!C54","v":0}]
[]
[{"$f":"Übersicht!C55","v":0}]
[]
[{"$f":"Übersicht!C56","v":0}]
[]
[{"$f":"Übersicht!C57","v":0}]
[]
[{"$f":"Übersicht!C58","v":"Ersingen"}]
[]
[{"$f":"Übersicht!C59","v":0}]
[]
[{"$f":"Übersicht!C60","v":0}]
[]
[{"$f":"Übersicht!C61","v":0}]
[]
[{"$f":"Übersicht!C62","v":0}]
[]
[{"$f":"Übersicht!C63","v":0}]
[]
[{"$f":"Übersicht!C64","v":0}]
[]
[{"$f":"Übersicht!C65","v":0}]
[]
[{"$f":"Übersicht!C66","v":0}]
[]
[{"$f":"Übersicht!C67","v":"Elektro"}]
[]
[{"$f":"Übersicht!C68","v":0}]
[]
[{"$f":"Übersicht!C69","v":0}]
[]
[{"$f":"Übersicht!C70","v":0}]
[]
[{"$f":"Übersicht!C71","v":0}]
[]
[{"$f":"Übersicht!C72","v":0}]
[]
[{"$f":"Übersicht!C73","v":0}]
[]
[{"$f":"Übersicht!C74","v":"Service"}]
[]
[{"$f":"Übersicht!C75","v":0}]
[]
[{"$f":"Übersicht!C76","v":0}]
[]
[{"$f":"Übersicht!C77","v":0}]
[]
[{"$f":"Übersicht!C78","v":0}]
[]
[{"$f":"Übersicht!C79","v":0}]
[]
[{"$f":"Übersicht!C80","v":0}]
[]
[{"$f":"Übersicht!C81","v":0}]
[]
[{"$f":"Übersicht!C82","v":0}]
[]
[{"$f":"Übersicht!C83","v":0}]
[]
[{"$f":"Übersicht!C84","v":"Techniker"}]
[]
[{"$f":"Übersicht!C85","v":0}]
[]
[{"$f":"Übersicht!C86","v":0}]
[]
[{"$f":"Übersicht!C87","v":0}]
[]
[{"$f":"Übersicht!C88","v":0}]
[]
[{"$f":"Übersicht!C89","v":0}]
[]
[{"$f":"Übersicht!C90","v":0}]
[]
[{"$f":"Übersicht!C91","v":0}]
[]
[{"$f":"Übersicht!C92","v":0}]
[]
[{"$f":"Übersicht!C93","v":0}]
[]
[{"$f":"Übersicht!C94","v":0}]
[]
[{"$f":"Übersicht!C95","v":0}]
[]
[{"$f":"Übersicht!C96","v":0}]
[]
[{"$f":"Übersicht!C97","v":0}]
[]
[{"$f":"Übersicht!C98","v":0}]
[]
[{"$f":"Übersicht!C99","v":0}]
[]
[{"$f":"Übersicht!C100","v":0}]
[]
[{"$f":"Übersicht!C101","v":0}]
[]
[{"$f":"Übersicht!C102","v":0}]
[]
[{"$f":"Übersicht!C103","v":0}]
[]
[{"$f":"Übersicht!C104","v":0}]
[]
[{"$f":"Übersicht!C105","v":0}]
[]
[{"$f":"Übersicht!C106","v":"Wartung"}]
[]
[{"$f":"Übersicht!C107","v":0}]
[]
[{"$f":"Übersicht!C108","v":0}]
[]
[{"$f":"Übersicht!C109","v":0}]
[]
[{"$f":"Übersicht!C110","v":"Techniker"}]
[]
[{"$f":"Übersicht!C111","v":0}]
[]
[{"$f":"Übersicht!C112","v":0}]
[]
[{"$f":"Übersicht!C113","v":0}]
[]
[{"$f":"Übersicht!C114","v":0}]
[]
[{"$f":"Übersicht!C115","v":0}]
[]
[{"$f":"Übersicht!C116","v":0}]
[]
[{"$f":"Übersicht!C117","v":0}]
[]
[{"$f":"Übersicht!C118","v":0}]
[]
[{"$f":"Übersicht!C119","v":0}]
[]
[{"$f":"Übersicht!C120","v":0}]
[]
[{"$f":"Übersicht!C121","v":0}]
[]
[{"$f":"Übersicht!C122","v":"Lager"}]
[]
[{"$f":"Übersicht!C123","v":0}]
[]
[{"$f":"Übersicht!C124","v":0}]
[]
[{"$f":"Übersicht!C125","v":0}]
[]
[{"$f":"Übersicht!C126","v":0}]
[]
[{"$f":"Übersicht!C127","v":0}]
[]
[{"$f":"Übersicht!C128","v":0}]
[]
[{"$f":"Übersicht!C129","v":"Montage"}]
[]
[{"$f":"Übersicht!C130","v":0}]
[]
[{"$f":"Übersicht!C131","v":0}]
[]
[{"$f":"Übersicht!C132","v":0}]
[]
[{"$f":"Übersicht!C133","v":0}]
[]
[{"$f":"Übersicht!C134","v":0}]
[]
[{"$f":"Übersicht!C135","v":0}]
[]
[{"$f":"Übersicht!C136","v":0}]
[]
[{"$f":"Übersicht!C137","v":0}]
[]
[{"$f":"Übersicht!C138","v":0}]
[]
[{"$f":"Übersicht!C139","v":0}]
[]
[{"$f":"Übersicht!C140","v":0}]
[]
[{"$f":"Übersicht!C141","v":0}]
[]
[{"$f":"Übersicht!C142","v":0}]
[]
[{"$f":"Übersicht!C143","v":0}]
[]
[{"$f":"Übersicht!C144","v":0}]
[]
[{"$f":"Übersicht!C145","v":0}]
[]
[{"$f":"Übersicht!C146","v":0}]
[]
[{"$f":"Übersicht!C147","v":0}]
[]
[{"$f":"Übersicht!C148","v":0}]
[]
[{"$f":"Übersicht!C149","v":"Lernende"}]
[]
[{"$f":"Übersicht!C150","v":0}]
[]
[{"$f":"Übersicht!C151","v":0}]
[]
[{"$f":"Übersicht!C152","v":0}]
[]
[{"$f":"Übersicht!C153","v":0}]
[]
[{"$f":"Übersicht!C154","v":0}]
[]
[{"$f":"Übersicht!C155","v":0}]
[]
[{"$f":"Übersicht!C156","v":0}]
[]
[{"$f":"Übersicht!C157","v":0}]
[]
[{"$f":"Übersicht!C158","v":0}]
[]
[{"$f":"Übersicht!C159","v":0}]
[]
[{"$f":"Übersicht!C160","v":"Sirnach"}]
[]
[{"$f":"Übersicht!C161","v":0}]
[]
[{"$f":"Übersicht!C162","v":0}]
[]
[{"$f":"Übersicht!C163","v":0}]
[]
[{"$f":"Übersicht!C164","v":0}]
[]
[{"$f":"Übersicht!C165","v":0}]
[]
[{"$f":"Übersicht!C166","v":0}]
[]
[{"$f":"Übersicht!C167","v":0}]
[]
[{"$f":"Übersicht!C168","v":0}]
[]
[{"$f":"Übersicht!C169","v":"Ersingen"}]
[]
[{"$f":"Übersicht!C170","v":0}]
[]
[{"$f":"Übersicht!C171","v":0}]
[]
[{"$f":"Übersicht!C172","v":0}]
[]
[{"$f":"Übersicht!C173","v":0}]
[]
[{"$f":"Übersicht!C174","v":0}]
[]
[{"$f":"Übersicht!C175","v":0}]
[]
[{"$f":"Übersicht!C176","v":0}]
[]
[{"$f":"Übersicht!C177","v":0}]
[]
[{"$f":"Übersicht!C178","v":0}]
[]
[{"$f":"Übersicht!C179","v":0}]
[]
[{"$f":"Übersicht!C180","v":0}]
[]
[{"$f":"Übersicht!C181","v":0}]
[]
[{"$f":"Übersicht!C182","v":0}]
[]
[{"$f":"Übersicht!C183","v":0}]
[]
[{"$f":"Übersicht!C184","v":"Letzert"}]

{"sheet":"Berechnungsblatt","index":2,"n_rows":116,"n_cols":10,"rows_kept":116,"cut":false,"hidden":false,"merged":[]}
["Jahr",2025,null,null,{"$f":"INT(B1/100)","v":20},null,null,"Schulferien"]
["Feiertag",null,null,null,{"$f":"MOD(19*MOD(B1,19)+E1-INT(E1/4)-INT((E1-INT((E1+8)/25)+1)/3)+15,30)","v":23}]
[{"$f":"TEXT(B3,\"TTTT\")","v":"Mittwoch"},{"$f":"DATE($B$1,1,1)","v":"2025-01-01"},"Neujahrstag",null,{"$f":"MOD(32+2*MOD(E1,4)+2*INT(MOD(B1,100)/4)-E2-MOD(MOD(B1,100),4),7)","v":6},null,"KW","KV","Kälte","KW"]
["Donnerstag",{"$f":"DATE($B$1,1,2)","v":"2025-01-02"},"Berchtoldstag",null,{"$f":"E2+E3-7*INT((MOD(B1,19)+11*E2+22*E3)/451)+22","v":51}]
["Freitag",{"$f":"B7-2","v":"2025-04-18"},"Karfreitag",null,null,null,1,{"$f":"DATE($B$1,1,1)+($G5-IF(WEEKDAY(DATE($B$1,1,1),2)>4,0,1))*7-WEEKDAY(DATE($B$1,1,1)+($G5-IF(WEEKDAY(DATE($B$1,1,1),2)>4,0,1))*7,2)+1","v":"2024-12-30"},{"$f":"DATE($B$1,1,1)+($J5-IF(WEEKDAY(DATE($B$1,1,1),2)>4,0,1))*7-WEEKDAY(DATE($B$1,1,1)+($J5-IF(WEEKDAY(DATE($B$1,1,1),2)>4,0,1))*7,2)+1","v":"2024-12-30"},1]
["Samstag",{"$f":"B7-1","v":"2025-04-19"},"Ostersamstag",null,null,null,null,{"$f":"DATE($B$1,1,1)+($G5-IF(WEEKDAY(DATE($B$1,1,1),2)>4,0,1))*7-WEEKDAY(DATE($B$1,1,1)+($G5-IF(WEEKDAY(DATE($B$1,1,1),2)>4,0,1))*7,2)+2","v":"2024-12-31"},{"$f":"DATE($B$1,1,1)+($J5-IF(WEEKDAY(DATE($B$1,1,1),2)>4,0,1))*7-WEEKDAY(DATE($B$1,1,1)+($J5-IF(WEEKDAY(DATE($B$1,1,1),2)>4,0,1))*7,2)+2","v":"2024-12-31"}]
["Sonntag",{"$f":"TEXT(IF(E4-31 < 1,E4,E4-31),\"0#\")&\".\"&IF(E4 > 31,\"04.\",\"03.\")&B1","v":"20.04.2025"},"Ostersonntag",null,null,null,null,{"$f":"DATE($B$1,1,1)+($G5-IF(WEEKDAY(DATE($B$1,1,1),2)>4,0,1))*7-WEEKDAY(DATE($B$1,1,1)+($G5-IF(WEEKDAY(DATE($B$1,1,1),2)>4,0,1))*7,2)+3","v":"2025-01-01"},{"$f":"DATE($B$1,1,1)+($J5-IF(WEEKDAY(DATE($B$1,1,1),2)>4,0,1))*7-WEEKDAY(DATE($B$1,1,1)+($J5-IF(WEEKDAY(DATE($B$1,1,1),2)>4,0,1))*7,2)+3","v":"2025-01-01"}]
["Montag",{"$f":"B7+1","v":"2025-04-21"},"Ostermontag",null,null,null,null,{"$f":"DATE($B$1,1,1)+($G5-IF(WEEKDAY(DATE($B$1,1,1),2)>4,0,1))*7-WEEKDAY(DATE($B$1,1,1)+($G5-IF(WEEKDAY(DATE($B$1,1,1),2)>4,0,1))*7,2)+4","v":"2025-01-02"},{"$f":"DATE($B$1,1,1)+($J5-IF(WEEKDAY(DATE($B$1,1,1),2)>4,0,1))*7-WEEKDAY(DATE($B$1,1,1)+($J5-IF(WEEKDAY(DATE($B$1,1,1),2)>4,0,1))*7,2)+4","v":"2025-01-02"}]
["Donnerstag",{"$f":"DATE(B1,5,1)","v":"2025-05-01"},"Tag der Arbeit",null,null,null,null,{"$f":"DATE($B$1,1,1)+($G5-IF(WEEKDAY(DATE($B$1,1,1),2)>4,0,1))*7-WEEKDAY(DATE($B$1,1,1)+($G5-IF(WEEKDAY(DATE($B$1,1,1),2)>4,0,1))*7,2)+5","v":"2025-01-03"},{"$f":"DATE($B$1,1,1)+($J5-IF(WEEKDAY(DATE($B$1,1,1),2)>4,0,1))*7-WEEKDAY(DATE($B$1,1,1)+($J5-IF(WEEKDAY(DATE($B$1,1,1),2)>4,0,1))*7,2)+5","v":"2025-01-03"}]
["Donnerstag",{"$f":"B7+39","v":"2025-05-29"},"Auffahrt",null,null,null,null,{"$f":"DATE($B$1,1,1)+($G5-IF(WEEKDAY(DATE($B$1,1,1),2)>4,0,1))*7-WEEKDAY(DATE($B$1,1,1)+($G5-IF(WEEKDAY(DATE($B$1,1,1),2)>4,0,1))*7,2)+6","v":"2025-01-04"},{"$f":"DATE($B$1,1,1)+($J5-IF(WEEKDAY(DATE($B$1,1,1),2)>4,0,1))*7-WEEKDAY(DATE($B$1,1,1)+($J5-IF(WEEKDAY(DATE($B$1,1,1),2)>4,0,1))*7,2)+6","v":"2025-01-04"}]
["Sonntag",{"$f":"B7+49","v":"2025-06-08"},"Pfingsten",null,null,null,null,{"$f":"DATE($B$1,1,1)+($G5-IF(WEEKDAY(DATE($B$1,1,1),2)>4,0,1))*7-WEEKDAY(DATE($B$1,1,1)+($G5-IF(WEEKDAY(DATE($B$1,1,1),2)>4,0,1))*7,2)+7","v":"2025-01-05"},{"$f":"DATE($B$1,1,1)+($J5-IF(WEEKDAY(DATE($B$1,1,1),2)>4,0,1))*7-WEEKDAY(DATE($B$1,1,1)+($J5-IF(WEEKDAY(DATE($B$1,1,1),2)>4,0,1))*7,2)+7","v":"2025-01-05"}]
["Montag",{"$f":"B7+50","v":"2025-06-09"},"Pfingsmontag",null,null,null,8,{"$f":"DATE($B$1,1,1)+($G12-IF(WEEKDAY(DATE($B$1,1,1),2)>4,0,1))*7-WEEKDAY(DATE($B$1,1,1)+($G12-IF(WEEKDAY(DATE($B$1,1,1),2)>4,0,1))*7,2)+1","v":"2025-02-17"},{"$f":"DATE($B$1,1,1)+($J12-IF(WEEKDAY(DATE($B$1,1,1),2)>4,0,1))*7-WEEKDAY(DATE($B$1,1,1)+($J12-IF(WEEKDAY(DATE($B$1,1,1),2)>4,0,1))*7,2)+1","v":"2025-03-31"},14]
["Freitag",{"$f":"DATE(B1,8,1)","v":"2025-08-01"},"Nationalfeiertag Schweiz",null,null,null,null,{"$f":"DATE($B$1,1,1)+($G12-IF(WEEKDAY(DATE($B$1,1,1),2)>4,0,1))*7-WEEKDAY(DATE($B$1,1,1)+($G12-IF(WEEKDAY(DATE($B$1,1,1),2)>4,0,1))*7,2)+2","v":"2025-02-18"},{"$f":"DATE($B$1,1,1)+($J12-IF(WEEKDAY(DATE($B$1,1,1),2)>4,0,1))*7-WEEKDAY(DATE($B$1,1,1)+($J12-IF(WEEKDAY(DATE($B$1,1,1),2)>4,0,1))*7,2)+2","v":"2025-04-01"}]
["Donnerstag",{"$f":"DATE(B1,12,25)","v":"2025-12-25"},"Weihnachten",null,null,null,null,{"$f":"DATE($B$1,1,1)+($G12-IF(WEEKDAY(DATE($B$1,1,1),2)>4,0,1))*7-WEEKDAY(DATE($B$1,1,1)+($G12-IF(WEEKDAY(DATE($B$1,1,1),2)>4,0,1))*7,2)+3","v":"2025-02-19"},{"$f":"DATE($B$1,1,1)+($J12-IF(WEEKDAY(DATE($B$1,1,1),2)>4,0,1))*7-WEEKDAY(DATE($B$1,1,1)+($J12-IF(WEEKDAY(DATE($B$1,1,1),2)>4,0,1))*7,2)+3","v":"2025-04-02"}]
["Freitag",{"$f":"DATE(B1,12,26)","v":"2025-12-26"},"Stephanstag",null,null,null,null,{"$f":"DATE($B$1,1,1)+($G12-IF(WEEKDAY(DATE($B$1,1,1),2)>4,0,1))*7-WEEKDAY(DATE($B$1,1,1)+($G12-IF(WEEKDAY(DATE($B$1,1,1),2)>4,0,1))*7,2)+4","v":"2025-02-20"},{"$f":"DATE($B$1,1,1)+($J12-IF(WEEKDAY(DATE($B$1,1,1),2)>4,0,1))*7-WEEKDAY(DATE($B$1,1,1)+($J12-IF(WEEKDAY(DATE($B$1,1,1),2)>4,0,1))*7,2)+4","v":"2025-04-03"}]
[null,null,null,null,null,null,null,{"$f":"DATE($B$1,1,1)+($G12-IF(WEEKDAY(DATE($B$1,1,1),2)>4,0,1))*7-WEEKDAY(DATE($B$1,1,1)+($G12-IF(WEEKDAY(DATE($B$1,1,1),2)>4,0,1))*7,2)+5","v":"2025-02-21"},{"$f":"DATE($B$1,1,1)+($J12-IF(WEEKDAY(DATE($B$1,1,1),2)>4,0,1))*7-WEEKDAY(DATE($B$1,1,1)+($J12-IF(WEEKDAY(DATE($B$1,1,1),2)>4,0,1))*7,2)+5","v":"2025-04-04"}]
[null,null,null,null,null,null,null,{"$f":"DATE($B$1,1,1)+($G12-IF(WEEKDAY(DATE($B$1,1,1),2)>4,0,1))*7-WEEKDAY(DATE($B$1,1,1)+($G12-IF(WEEKDAY(DATE($B$1,1,1),2)>4,0,1))*7,2)+6","v":"2025-02-22"},{"$f":"DATE($B$1,1,1)+($J12-IF(WEEKDAY(DATE($B$1,1,1),2)>4,0,1))*7-WEEKDAY(DATE($B$1,1,1)+($J12-IF(WEEKDAY(DATE($B$1,1,1),2)>4,0,1))*7,2)+6","v":"2025-04-05"}]
["Ferien 1/2",null,null,null,null,null,null,{"$f":"DATE($B$1,1,1)+($G12-IF(WEEKDAY(DATE($B$1,1,1),2)>4,0,1))*7-WEEKDAY(DATE($B$1,1,1)+($G12-IF(WEEKDAY(DATE($B$1,1,1),2)>4,0,1))*7,2)+7","v":"2025-02-23"},{"$f":"DATE($B$1,1,1)+($J12-IF(WEEKDAY(DATE($B$1,1,1),2)>4,0,1))*7-WEEKDAY(DATE($B$1,1,1)+($J12-IF(WEEKDAY(DATE($B$1,1,1),2)>4,0,1))*7,2)+7","v":"2025-04-06"}]
["Ferien",null,null,null,null,null,{"$f":"G12+1","v":9},{"$f":"DATE($B$1,1,1)+($G19-IF(WEEKDAY(DATE($B$1,1,1),2)>4,0,1))*7-WEEKDAY(DATE($B$1,1,1)+($G19-IF(WEEKDAY(DATE($B$1,1,1),2)>4,0,1))*7,2)+1","v":"2025-02-24"},{"$f":"DATE($B$1,1,1)+($J19-IF(WEEKDAY(DATE($B$1,1,1),2)>4,0,1))*7-WEEKDAY(DATE($B$1,1,1)+($J19-IF(WEEKDAY(DATE($B$1,1,1),2)>4,0,1))*7,2)+1","v":"2025-04-07"},{"$f":"J12+1","v":15}]
["Militär / Feuerwehr",null,null,null,null,null,null,{"$f":"DATE($B$1,1,1)+($G19-IF(WEEKDAY(DATE($B$1,1,1),2)>4,0,1))*7-WEEKDAY(DATE($B$1,1,1)+($G19-IF(WEEKDAY(DATE($B$1,1,1),2)>4,0,1))*7,2)+2","v":"2025-02-25"},{"$f":"DATE($B$1,1,1)+($J19-IF(WEEKDAY(DATE($B$1,1,1),2)>4,0,1))*7-WEEKDAY(DATE($B$1,1,1)+($J19-IF(WEEKDAY(DATE($B$1,1,1),2)>4,0,1))*7,2)+2","v":"2025-04-08"}]
["Absenzen bezahlt",null,null,null,null,null,null,{"$f":"DATE($B$1,1,1)+($G19-IF(WEEKDAY(DATE($B$1,1,1),2)>4,0,1))*7-WEEKDAY(DATE($B$1,1,1)+($G19-IF(WEEKDAY(DATE($B$1,1,1),2)>4,0,1))*7,2)+3","v":"2025-02-26"},{"$f":"DATE($B$1,1,1)+($J19-IF(WEEKDAY(DATE($B$1,1,1),2)>4,0,1))*7-WEEKDAY(DATE($B$1,1,1)+($J19-IF(WEEKDAY(DATE($B$1,1,1),2)>4,0,1))*7,2)+3","v":"2025-04-09"}]
["Krank-Unfall",null,null,null,null,null,null,{"$f":"DATE($B$1,1,1)+($G19-IF(WEEKDAY(DATE($B$1,1,1),2)>4,0,1))*7-WEEKDAY(DATE($B$1,1,1)+($G19-IF(WEEKDAY(DATE($B$1,1,1),2)>4,0,1))*7,2)+4","v":"2025-02-27"},{"$f":"DATE($B$1,1,1)+($J19-IF(WEEKDAY(DATE($B$1,1,1),2)>4,0,1))*7-WEEKDAY(DATE($B$1,1,1)+($J19-IF(WEEKDAY(DATE($B$1,1,1),2)>4,0,1))*7,2)+4","v":"2025-04-10"}]
[null,null,null,null,null,null,null,{"$f":"DATE($B$1,1,1)+($G19-IF(WEEKDAY(DATE($B$1,1,1),2)>4,0,1))*7-WEEKDAY(DATE($B$1,1,1)+($G19-IF(WEEKDAY(DATE($B$1,1,1),2)>4,0,1))*7,2)+5","v":"2025-02-28"},{"$f":"DATE($B$1,1,1)+($J19-IF(WEEKDAY(DATE($B$1,1,1),2)>4,0,1))*7-WEEKDAY(DATE($B$1,1,1)+($J19-IF(WEEKDAY(DATE($B$1,1,1),2)>4,0,1))*7,2)+5","v":"2025-04-11"}]
[null,null,null,null,null,null,null,{"$f":"DATE($B$1,1,1)+($G19-IF(WEEKDAY(DATE($B$1,1,1),2)>4,0,1))*7-WEEKDAY(DATE($B$1,1,1)+($G19-IF(WEEKDAY(DATE($B$1,1,1),2)>4,0,1))*7,2)+6","v":"2025-03-01"},{"$f":"DATE($B$1,1,1)+($J19-IF(WEEKDAY(DATE($B$1,1,1),2)>4,0,1))*7-WEEKDAY(DATE($B$1,1,1)+($J19-IF(WEEKDAY(DATE($B$1,1,1),2)>4,0,1))*7,2)+6","v":"2025-04-12"}]
[null,null,null,null,null,null,null,{"$f":"DATE($B$1,1,1)+($G19-IF(WEEKDAY(DATE($B$1,1,1),2)>4,0,1))*7-WEEKDAY(DATE($B$1,1,1)+($G19-IF(WEEKDAY(DATE($B$1,1,1),2)>4,0,1))*7,2)+7","v":"2025-03-02"},{"$f":"DATE($B$1,1,1)+($J19-IF(WEEKDAY(DATE($B$1,1,1),2)>4,0,1))*7-WEEKDAY(DATE($B$1,1,1)+($J19-IF(WEEKDAY(DATE($B$1,1,1),2)>4,0,1))*7,2)+7","v":"2025-04-13"}]
[null,null,null,null,null,null,17,{"$f":"DATE($B$1,1,1)+($G26-IF(WEEKDAY(DATE($B$1,1,1),2)>4,0,1))*7-WEEKDAY(DATE($B$1,1,1)+($G26-IF(WEEKDAY(DATE($B$1,1,1),2)>4,0,1))*7,2)+1","v":"2025-04-21"},{"$f":"DATE($B$1,1,1)+($J26-IF(WEEKDAY(DATE($B$1,1,1),2)>4,0,1))*7-WEEKDAY(DATE($B$1,1,1)+($J26-IF(WEEKDAY(DATE($B$1,1,1),2)>4,0,1))*7,2)+1","v":"2025-04-14"},{"$f":"J19+1","v":16}]
[null,null,null,null,null,null,null,{"$f":"DATE($B$1,1,1)+($G26-IF(WEEKDAY(DATE($B$1,1,1),2)>4,0,1))*7-WEEKDAY(DATE($B$1,1,1)+($G26-IF(WEEKDAY(DATE($B$1,1,1),2)>4,0,1))*7,2)+2","v":"2025-04-22"},{"$f":"DATE($B$1,1,1)+($J26-IF(WEEKDAY(DATE($B$1,1,1),2)>4,0,1))*7-WEEKDAY(DATE($B$1,1,1)+($J26-IF(WEEKDAY(DATE($B$1,1,1),2)>4,0,1))*7,2)+2","v":"2025-04-15"}]
[null,null,null,null,null,null,null,{"$f":"DATE($B$1,1,1)+($G26-IF(WEEKDAY(DATE($B$1,1,1),2)>4,0,1))*7-WEEKDAY(DATE($B$1,1,1)+($G26-IF(WEEKDAY(DATE($B$1,1,1),2)>4,0,1))*7,2)+3","v":"2025-04-23"},{"$f":"DATE($B$1,1,1)+($J26-IF(WEEKDAY(DATE($B$1,1,1),2)>4,0,1))*7-WEEKDAY(DATE($B$1,1,1)+($J26-IF(WEEKDAY(DATE($B$1,1,1),2)>4,0,1))*7,2)+3","v":"2025-04-16"}]
[null,null,null,null,null,null,null,{"$f":"DATE($B$1,1,1)+($G26-IF(WEEKDAY(DATE($B$1,1,1),2)>4,0,1))*7-WEEKDAY(DATE($B$1,1,1)+($G26-IF(WEEKDAY(DATE($B$1,1,1),2)>4,0,1))*7,2)+4","v":"2025-04-24"},{"$f":"DATE($B$1,1,1)+($J26-IF(WEEKDAY(DATE($B$1,1,1),2)>4,0,1))*7-WEEKDAY(DATE($B$1,1,1)+($J26-IF(WEEKDAY(DATE($B$1,1,1),2)>4,0,1))*7,2)+4","v":"2025-04-17"}]
[null,null,null,null,null,null,null,{"$f":"DATE($B$1,1,1)+($G26-IF(WEEKDAY(DATE($B$1,1,1),2)>4,0,1))*7-WEEKDAY(DATE($B$1,1,1)+($G26-IF(WEEKDAY(DATE($B$1,1,1),2)>4,0,1))*7,2)+5","v":"2025-04-25"},{"$f":"DATE($B$1,1,1)+($J26-IF(WEEKDAY(DATE($B$1,1,1),2)>4,0,1))*7-WEEKDAY(DATE($B$1,1,1)+($J26-IF(WEEKDAY(DATE($B$1,1,1),2)>4,0,1))*7,2)+5","v":"2025-04-18"}]
[null,null,null,null,null,null,null,{"$f":"DATE($B$1,1,1)+($G26-IF(WEEKDAY(DATE($B$1,1,1),2)>4,0,1))*7-WEEKDAY(DATE($B$1,1,1)+($G26-IF(WEEKDAY(DATE($B$1,1,1),2)>4,0,1))*7,2)+6","v":"2025-04-26"},{"$f":"DATE($B$1,1,1)+($J26-IF(WEEKDAY(DATE($B$1,1,1),2)>4,0,1))*7-WEEKDAY(DATE($B$1,1,1)+($J26-IF(WEEKDAY(DATE($B$1,1,1),2)>4,0,1))*7,2)+6","v":"2025-04-19"}]
[null,null,null,null,null,null,null,{"$f":"DATE($B$1,1,1)+($G26-IF(WEEKDAY(DATE($B$1,1,1),2)>4,0,1))*7-WEEKDAY(DATE($B$1,1,1)+($G26-IF(WEEKDAY(DATE($B$1,1,1),2)>4,0,1))*7,2)+7","v":"2025-04-27"},{"$f":"DATE($B$1,1,1)+($J26-IF(WEEKDAY(DATE($B$1,1,1),2)>4,0,1))*7-WEEKDAY(DATE($B$1,1,1)+($J26-IF(WEEKDAY(DATE($B$1,1,1),2)>4,0,1))*7,2)+7","v":"2025-04-20"}]
[null,null,null,null,null,null,{"$f":"G26+1","v":18},{"$f":"DATE($B$1,1,1)+($G33-IF(WEEKDAY(DATE($B$1,1,1),2)>4,0,1))*7-WEEKDAY(DATE($B$1,1,1)+($G33-IF(WEEKDAY(DATE($B$1,1,1),2)>4,0,1))*7,2)+1","v":"2025-04-28"},{"$f":"DATE($B$1,1,1)+($J33-IF(WEEKDAY(DATE($B$1,1,1),2)>4,0,1))*7-WEEKDAY(DATE($B$1,1,1)+($J33-IF(WEEKDAY(DATE($B$1,1,1),2)>4,0,1))*7,2)+1","v":"2025-06-30"},27]
[null,null,null,null,null,null,null,{"$f":"DATE($B$1,1,1)+($G33-IF(WEEKDAY(DATE($B$1,1,1),2)>4,0,1))*7-WEEKDAY(DATE($B$1,1,1)+($G33-IF(WEEKDAY(DATE($B$1,1,1),2)>4,0,1))*7,2)+2","v":"2025-04-29"},{"$f":"DATE($B$1,1,1)+($J33-IF(WEEKDAY(DATE($B$1,1,1),2)>4,0,1))*7-WEEKDAY(DATE($B$1,1,1)+($J33-IF(WEEKDAY(DATE($B$1,1,1),2)>4,0,1))*7,2)+2","v":"2025-07-01"}]
[null,null,null,null,null,null,null,{"$f":"DATE($B$1,1,1)+($G33-IF(WEEKDAY(DATE($B$1,1,1),2)>4,0,1))*7-WEEKDAY(DATE($B$1,1,1)+($G33-IF(WEEKDAY(DATE($B$1,1,1),2)>4,0,1))*7,2)+3","v":"2025-04-30"},{"$f":"DATE($B$1,1,1)+($J33-IF(WEEKDAY(DATE($B$1,1,1),2)>4,0,1))*7-WEEKDAY(DATE($B$1,1,1)+($J33-IF(WEEKDAY(DATE($B$1,1,1),2)>4,0,1))*7,2)+3","v":"2025-07-02"}]
[null,null,null,null,null,null,null,{"$f":"DATE($B$1,1,1)+($G33-IF(WEEKDAY(DATE($B$1,1,1),2)>4,0,1))*7-WEEKDAY(DATE($B$1,1,1)+($G33-IF(WEEKDAY(DATE($B$1,1,1),2)>4,0,1))*7,2)+4","v":"2025-05-01"},{"$f":"DATE($B$1,1,1)+($J33-IF(WEEKDAY(DATE($B$1,1,1),2)>4,0,1))*7-WEEKDAY(DATE($B$1,1,1)+($J33-IF(WEEKDAY(DATE($B$1,1,1),2)>4,0,1))*7,2)+4","v":"2025-07-03"}]
[null,null,null,null,null,null,null,{"$f":"DATE($B$1,1,1)+($G33-IF(WEEKDAY(DATE($B$1,1,1),2)>4,0,1))*7-WEEKDAY(DATE($B$1,1,1)+($G33-IF(WEEKDAY(DATE($B$1,1,1),2)>4,0,1))*7,2)+5","v":"2025-05-02"},{"$f":"DATE($B$1,1,1)+($J33-IF(WEEKDAY(DATE($B$1,1,1),2)>4,0,1))*7-WEEKDAY(DATE($B$1,1,1)+($J33-IF(WEEKDAY(DATE($B$1,1,1),2)>4,0,1))*7,2)+5","v":"2025-07-04"}]
[null,null,null,null,null,null,null,{"$f":"DATE($B$1,1,1)+($G33-IF(WEEKDAY(DATE($B$1,1,1),2)>4,0,1))*7-WEEKDAY(DATE($B$1,1,1)+($G33-IF(WEEKDAY(DATE($B$1,1,1),2)>4,0,1))*7,2)+6","v":"2025-05-03"},{"$f":"DATE($B$1,1,1)+($J33-IF(WEEKDAY(DATE($B$1,1,1),2)>4,0,1))*7-WEEKDAY(DATE($B$1,1,1)+($J33-IF(WEEKDAY(DATE($B$1,1,1),2)>4,0,1))*7,2)+6","v":"2025-07-05"}]
[null,null,null,null,null,null,null,{"$f":"DATE($B$1,1,1)+($G33-IF(WEEKDAY(DATE($B$1,1,1),2)>4,0,1))*7-WEEKDAY(DATE($B$1,1,1)+($G33-IF(WEEKDAY(DATE($B$1,1,1),2)>4,0,1))*7,2)+7","v":"2025-05-04"},{"$f":"DATE($B$1,1,1)+($J33-IF(WEEKDAY(DATE($B$1,1,1),2)>4,0,1))*7-WEEKDAY(DATE($B$1,1,1)+($J33-IF(WEEKDAY(DATE($B$1,1,1),2)>4,0,1))*7,2)+7","v":"2025-07-06"}]
[null,null,null,null,null,null,29,{"$f":"DATE($B$1,1,1)+($G40-IF(WEEKDAY(DATE($B$1,1,1),2)>4,0,1))*7-WEEKDAY(DATE($B$1,1,1)+($G40-IF(WEEKDAY(DATE($B$1,1,1),2)>4,0,1))*7,2)+1","v":"2025-07-14"},{"$f":"DATE($B$1,1,1)+($J40-IF(WEEKDAY(DATE($B$1,1,1),2)>4,0,1))*7-WEEKDAY(DATE($B$1,1,1)+($J40-IF(WEEKDAY(DATE($B$1,1,1),2)>4,0,1))*7,2)+1","v":"2025-07-07"},{"$f":"J33+1","v":28}]
[null,null,null,null,null,null,null,{"$f":"DATE($B$1,1,1)+($G40-IF(WEEKDAY(DATE($B$1,1,1),2)>4,0,1))*7-WEEKDAY(DATE($B$1,1,1)+($G40-IF(WEEKDAY(DATE($B$1,1,1),2)>4,0,1))*7,2)+2","v":"2025-07-15"},{"$f":"DATE($B$1,1,1)+($J40-IF(WEEKDAY(DATE($B$1,1,1),2)>4,0,1))*7-WEEKDAY(DATE($B$1,1,1)+($J40-IF(WEEKDAY(DATE($B$1,1,1),2)>4,0,1))*7,2)+2","v":"2025-07-08"}]
[null,null,null,null,null,null,null,{"$f":"DATE($B$1,1,1)+($G40-IF(WEEKDAY(DATE($B$1,1,1),2)>4,0,1))*7-WEEKDAY(DATE($B$1,1,1)+($G40-IF(WEEKDAY(DATE($B$1,1,1),2)>4,0,1))*7,2)+3","v":"2025-07-16"},{"$f":"DATE($B$1,1,1)+($J40-IF(WEEKDAY(DATE($B$1,1,1),2)>4,0,1))*7-WEEKDAY(DATE($B$1,1,1)+($J40-IF(WEEKDAY(DATE($B$1,1,1),2)>4,0,1))*7,2)+3","v":"2025-07-09"}]
[null,null,null,null,null,null,null,{"$f":"DATE($B$1,1,1)+($G40-IF(WEEKDAY(DATE($B$1,1,1),2)>4,0,1))*7-WEEKDAY(DATE($B$1,1,1)+($G40-IF(WEEKDAY(DATE($B$1,1,1),2)>4,0,1))*7,2)+4","v":"2025-07-17"},{"$f":"DATE($B$1,1,1)+($J40-IF(WEEKDAY(DATE($B$1,1,1),2)>4,0,1))*7-WEEKDAY(DATE($B$1,1,1)+($J40-IF(WEEKDAY(DATE($B$1,1,1),2)>4,0,1))*7,2)+4","v":"2025-07-10"}]
[null,null,null,null,null,null,null,{"$f":"DATE($B$1,1,1)+($G40-IF(WEEKDAY(DATE($B$1,1,1),2)>4,0,1))*7-WEEKDAY(DATE($B$1,1,1)+($G40-IF(WEEKDAY(DATE($B$1,1,1),2)>4,0,1))*7,2)+5","v":"2025-07-18"},{"$f":"DATE($B$1,1,1)+($J40-IF(WEEKDAY(DATE($B$1,1,1),2)>4,0,1))*7-WEEKDAY(DATE($B$1,1,1)+($J40-IF(WEEKDAY(DATE($B$1,1,1),2)>4,0,1))*7,2)+5","v":"2025-07-11"}]
[null,null,null,null,null,null,null,{"$f":"DATE($B$1,1,1)+($G40-IF(WEEKDAY(DATE($B$1,1,1),2)>4,0,1))*7-WEEKDAY(DATE($B$1,1,1)+($G40-IF(WEEKDAY(DATE($B$1,1,1),2)>4,0,1))*7,2)+6","v":"2025-07-19"},{"$f":"DATE($B$1,1,1)+($J40-IF(WEEKDAY(DATE($B$1,1,1),2)>4,0,1))*7-WEEKDAY(DATE($B$1,1,1)+($J40-IF(WEEKDAY(DATE($B$1,1,1),2)>4,0,1))*7,2)+6","v":"2025-07-12"}]
[null,null,null,null,null,null,null,{"$f":"DATE($B$1,1,1)+($G40-IF(WEEKDAY(DATE($B$1,1,1),2)>4,0,1))*7-WEEKDAY(DATE($B$1,1,1)+($G40-IF(WEEKDAY(DATE($B$1,1,1),2)>4,0,1))*7,2)+7","v":"2025-07-20"},{"$f":"DATE($B$1,1,1)+($J40-IF(WEEKDAY(DATE($B$1,1,1),2)>4,0,1))*7-WEEKDAY(DATE($B$1,1,1)+($J40-IF(WEEKDAY(DATE($B$1,1,1),2)>4,0,1))*7,2)+7","v":"2025-07-13"}]
[null,null,null,null,null,null,{"$f":"G40+1","v":30},{"$f":"DATE($B$1,1,1)+($G47-IF(WEEKDAY(DATE($B$1,1,1),2)>4,0,1))*7-WEEKDAY(DATE($B$1,1,1)+($G47-IF(WEEKDAY(DATE($B$1,1,1),2)>4,0,1))*7,2)+1","v":"2025-07-21"},{"$f":"DATE($B$1,1,1)+($J47-IF(WEEKDAY(DATE($B$1,1,1),2)>4,0,1))*7-WEEKDAY(DATE($B$1,1,1)+($J47-IF(WEEKDAY(DATE($B$1,1,1),2)>4,0,1))*7,2)+1","v":"2025-07-14"},{"$f":"J40+1","v":29}]
[null,null,null,null,null,null,null,{"$f":"DATE($B$1,1,1)+($G47-IF(WEEKDAY(DATE($B$1,1,1),2)>4,0,1))*7-WEEKDAY(DATE($B$1,1,1)+($G47-IF(WEEKDAY(DATE($B$1,1,1),2)>4,0,1))*7,2)+2","v":"2025-07-22"},{"$f":"DATE($B$1,1,1)+($J47-IF(WEEKDAY(DATE($B$1,1,1),2)>4,0,1))*7-WEEKDAY(DATE($B$1,1,1)+($J47-IF(WEEKDAY(DATE($B$1,1,1),2)>4,0,1))*7,2)+2","v":"2025-07-15"}]
[null,null,null,null,null,null,null,{"$f":"DATE($B$1,1,1)+($G47-IF(WEEKDAY(DATE($B$1,1,1),2)>4,0,1))*7-WEEKDAY(DATE($B$1,1,1)+($G47-IF(WEEKDAY(DATE($B$1,1,1),2)>4,0,1))*7,2)+3","v":"2025-07-23"},{"$f":"DATE($B$1,1,1)+($J47-IF(WEEKDAY(DATE($B$1,1,1),2)>4,0,1))*7-WEEKDAY(DATE($B$1,1,1)+($J47-IF(WEEKDAY(DATE($B$1,1,1),2)>4,0,1))*7,2)+3","v":"2025-07-16"}]
[null,null,null,null,null,null,null,{"$f":"DATE($B$1,1,1)+($G47-IF(WEEKDAY(DATE($B$1,1,1),2)>4,0,1))*7-WEEKDAY(DATE($B$1,1,1)+($G47-IF(WEEKDAY(DATE($B$1,1,1),2)>4,0,1))*7,2)+4","v":"2025-07-24"},{"$f":"DATE($B$1,1,1)+($J47-IF(WEEKDAY(DATE($B$1,1,1),2)>4,0,1))*7-WEEKDAY(DATE($B$1,1,1)+($J47-IF(WEEKDAY(DATE($B$1,1,1),2)>4,0,1))*7,2)+4","v":"2025-07-17"}]
[null,null,null,null,null,null,null,{"$f":"DATE($B$1,1,1)+($G47-IF(WEEKDAY(DATE($B$1,1,1),2)>4,0,1))*7-WEEKDAY(DATE($B$1,1,1)+($G47-IF(WEEKDAY(DATE($B$1,1,1),2)>4,0,1))*7,2)+5","v":"2025-07-25"},{"$f":"DATE($B$1,1,1)+($J47-IF(WEEKDAY(DATE($B$1,1,1),2)>4,0,1))*7-WEEKDAY(DATE($B$1,1,1)+($J47-IF(WEEKDAY(DATE($B$1,1,1),2)>4,0,1))*7,2)+5","v":"2025-07-18"}]
[null,null,null,null,null,null,null,{"$f":"DATE($B$1,1,1)+($G47-IF(WEEKDAY(DATE($B$1,1,1),2)>4,0,1))*7-WEEKDAY(DATE($B$1,1,1)+($G47-IF(WEEKDAY(DATE($B$1,1,1),2)>4,0,1))*7,2)+6","v":"2025-07-26"},{"$f":"DATE($B$1,1,1)+($J47-IF(WEEKDAY(DATE($B$1,1,1),2)>4,0,1))*7-WEEKDAY(DATE($B$1,1,1)+($J47-IF(WEEKDAY(DATE($B$1,1,1),2)>4,0,1))*7,2)+6","v":"2025-07-19"}]
[null,null,null,null,null,null,null,{"$f":"DATE($B$1,1,1)+($G47-IF(WEEKDAY(DATE($B$1,1,1),2)>4,0,1))*7-WEEKDAY(DATE($B$1,1,1)+($G47-IF(WEEKDAY(DATE($B$1,1,1),2)>4,0,1))*7,2)+7","v":"2025-07-27"},{"$f":"DATE($B$1,1,1)+($J47-IF(WEEKDAY(DATE($B$1,1,1),2)>4,0,1))*7-WEEKDAY(DATE($B$1,1,1)+($J47-IF(WEEKDAY(DATE($B$1,1,1),2)>4,0,1))*7,2)+7","v":"2025-07-20"}]
[null,null,null,null,null,null,{"$f":"G47+1","v":31},{"$f":"DATE($B$1,1,1)+($G54-IF(WEEKDAY(DATE($B$1,1,1),2)>4,0,1))*7-WEEKDAY(DATE($B$1,1,1)+($G54-IF(WEEKDAY(DATE($B$1,1,1),2)>4,0,1))*7,2)+1","v":"2025-07-28"},{"$f":"DATE($B$1,1,1)+($J54-IF(WEEKDAY(DATE($B$1,1,1),2)>4,0,1))*7-WEEKDAY(DATE($B$1,1,1)+($J54-IF(WEEKDAY(DATE($B$1,1,1),2)>4,0,1))*7,2)+1","v":"2025-07-21"},{"$f":"J47+1","v":30}]
[null,null,null,null,null,null,null,{"$f":"DATE($B$1,1,1)+($G54-IF(WEEKDAY(DATE($B$1,1,1),2)>4,0,1))*7-WEEKDAY(DATE($B$1,1,1)+($G54-IF(WEEKDAY(DATE($B$1,1,1),2)>4,0,1))*7,2)+2","v":"2025-07-29"},{"$f":"DATE($B$1,1,1)+($J54-IF(WEEKDAY(DATE($B$1,1,1),2)>4,0,1))*7-WEEKDAY(DATE($B$1,1,1)+($J54-IF(WEEKDAY(DATE($B$1,1,1),2)>4,0,1))*7,2)+2","v":"2025-07-22"}]
[null,null,null,null,null,null,null,{"$f":"DATE($B$1,1,1)+($G54-IF(WEEKDAY(DATE($B$1,1,1),2)>4,0,1))*7-WEEKDAY(DATE($B$1,1,1)+($G54-IF(WEEKDAY(DATE($B$1,1,1),2)>4,0,1))*7,2)+3","v":"2025-07-30"},{"$f":"DATE($B$1,1,1)+($J54-IF(WEEKDAY(DATE($B$1,1,1),2)>4,0,1))*7-WEEKDAY(DATE($B$1,1,1)+($J54-IF(WEEKDAY(DATE($B$1,1,1),2)>4,0,1))*7,2)+3","v":"2025-07-23"}]
[null,null,null,null,null,null,null,{"$f":"DATE($B$1,1,1)+($G54-IF(WEEKDAY(DATE($B$1,1,1),2)>4,0,1))*7-WEEKDAY(DATE($B$1,1,1)+($G54-IF(WEEKDAY(DATE($B$1,1,1),2)>4,0,1))*7,2)+4","v":"2025-07-31"},{"$f":"DATE($B$1,1,1)+($J54-IF(WEEKDAY(DATE($B$1,1,1),2)>4,0,1))*7-WEEKDAY(DATE($B$1,1,1)+($J54-IF(WEEKDAY(DATE($B$1,1,1),2)>4,0,1))*7,2)+4","v":"2025-07-24"}]
[null,null,null,null,null,null,null,{"$f":"DATE($B$1,1,1)+($G54-IF(WEEKDAY(DATE($B$1,1,1),2)>4,0,1))*7-WEEKDAY(DATE($B$1,1,1)+($G54-IF(WEEKDAY(DATE($B$1,1,1),2)>4,0,1))*7,2)+5","v":"2025-08-01"},{"$f":"DATE($B$1,1,1)+($J54-IF(WEEKDAY(DATE($B$1,1,1),2)>4,0,1))*7-WEEKDAY(DATE($B$1,1,1)+($J54-IF(WEEKDAY(DATE($B$1,1,1),2)>4,0,1))*7,2)+5","v":"2025-07-25"}]
[null,null,null,null,null,null,null,{"$f":"DATE($B$1,1,1)+($G54-IF(WEEKDAY(DATE($B$1,1,1),2)>4,0,1))*7-WEEKDAY(DATE($B$1,1,1)+($G54-IF(WEEKDAY(DATE($B$1,1,1),2)>4,0,1))*7,2)+6","v":"2025-08-02"},{"$f":"DATE($B$1,1,1)+($J54-IF(WEEKDAY(DATE($B$1,1,1),2)>4,0,1))*7-WEEKDAY(DATE($B$1,1,1)+($J54-IF(WEEKDAY(DATE($B$1,1,1),2)>4,0,1))*7,2)+6","v":"2025-07-26"}]
[null,null,null,null,null,null,null,{"$f":"DATE($B$1,1,1)+($G54-IF(WEEKDAY(DATE($B$1,1,1),2)>4,0,1))*7-WEEKDAY(DATE($B$1,1,1)+($G54-IF(WEEKDAY(DATE($B$1,1,1),2)>4,0,1))*7,2)+7","v":"2025-08-03"},{"$f":"DATE($B$1,1,1)+($J54-IF(WEEKDAY(DATE($B$1,1,1),2)>4,0,1))*7-WEEKDAY(DATE($B$1,1,1)+($J54-IF(WEEKDAY(DATE($B$1,1,1),2)>4,0,1))*7,2)+7","v":"2025-07-27"}]
[null,null,null,null,null,null,{"$f":"G54+1","v":32},{"$f":"DATE($B$1,1,1)+($G61-IF(WEEKDAY(DATE($B$1,1,1),2)>4,0,1))*7-WEEKDAY(DATE($B$1,1,1)+($G61-IF(WEEKDAY(DATE($B$1,1,1),2)>4,0,1))*7,2)+1","v":"2025-08-04"},{"$f":"DATE($B$1,1,1)+($J61-IF(WEEKDAY(DATE($B$1,1,1),2)>4,0,1))*7-WEEKDAY(DATE($B$1,1,1)+($J61-IF(WEEKDAY(DATE($B$1,1,1),2)>4,0,1))*7,2)+1","v":"2025-07-28"},{"$f":"J54+1","v":31}]
[null,null,null,null,null,null,null,{"$f":"DATE($B$1,1,1)+($G61-IF(WEEKDAY(DATE($B$1,1,1),2)>4,0,1))*7-WEEKDAY(DATE($B$1,1,1)+($G61-IF(WEEKDAY(DATE($B$1,1,1),2)>4,0,1))*7,2)+2","v":"2025-08-05"},{"$f":"DATE($B$1,1,1)+($J61-IF(WEEKDAY(DATE($B$1,1,1),2)>4,0,1))*7-WEEKDAY(DATE($B$1,1,1)+($J61-IF(WEEKDAY(DATE($B$1,1,1),2)>4,0,1))*7,2)+2","v":"2025-07-29"}]
[null,null,null,null,null,null,null,{"$f":"DATE($B$1,1,1)+($G61-IF(WEEKDAY(DATE($B$1,1,1),2)>4,0,1))*7-WEEKDAY(DATE($B$1,1,1)+($G61-IF(WEEKDAY(DATE($B$1,1,1),2)>4,0,1))*7,2)+3","v":"2025-08-06"},{"$f":"DATE($B$1,1,1)+($J61-IF(WEEKDAY(DATE($B$1,1,1),2)>4,0,1))*7-WEEKDAY(DATE($B$1,1,1)+($J61-IF(WEEKDAY(DATE($B$1,1,1),2)>4,0,1))*7,2)+3","v":"2025-07-30"}]
[null,null,null,null,null,null,null,{"$f":"DATE($B$1,1,1)+($G61-IF(WEEKDAY(DATE($B$1,1,1),2)>4,0,1))*7-WEEKDAY(DATE($B$1,1,1)+($G61-IF(WEEKDAY(DATE($B$1,1,1),2)>4,0,1))*7,2)+4","v":"2025-08-07"},{"$f":"DATE($B$1,1,1)+($J61-IF(WEEKDAY(DATE($B$1,1,1),2)>4,0,1))*7-WEEKDAY(DATE($B$1,1,1)+($J61-IF(WEEKDAY(DATE($B$1,1,1),2)>4,0,1))*7,2)+4","v":"2025-07-31"}]
[null,null,null,null,null,null,null,{"$f":"DATE($B$1,1,1)+($G61-IF(WEEKDAY(DATE($B$1,1,1),2)>4,0,1))*7-WEEKDAY(DATE($B$1,1,1)+($G61-IF(WEEKDAY(DATE($B$1,1,1),2)>4,0,1))*7,2)+5","v":"2025-08-08"},{"$f":"DATE($B$1,1,1)+($J61-IF(WEEKDAY(DATE($B$1,1,1),2)>4,0,1))*7-WEEKDAY(DATE($B$1,1,1)+($J61-IF(WEEKDAY(DATE($B$1,1,1),2)>4,0,1))*7,2)+5","v":"2025-08-01"}]
[null,null,null,null,null,null,null,{"$f":"DATE($B$1,1,1)+($G61-IF(WEEKDAY(DATE($B$1,1,1),2)>4,0,1))*7-WEEKDAY(DATE($B$1,1,1)+($G61-IF(WEEKDAY(DATE($B$1,1,1),2)>4,0,1))*7,2)+6","v":"2025-08-09"},{"$f":"DATE($B$1,1,1)+($J61-IF(WEEKDAY(DATE($B$1,1,1),2)>4,0,1))*7-WEEKDAY(DATE($B$1,1,1)+($J61-IF(WEEKDAY(DATE($B$1,1,1),2)>4,0,1))*7,2)+6","v":"2025-08-02"}]
[null,null,null,null,null,null,null,{"$f":"DATE($B$1,1,1)+($G61-IF(WEEKDAY(DATE($B$1,1,1),2)>4,0,1))*7-WEEKDAY(DATE($B$1,1,1)+($G61-IF(WEEKDAY(DATE($B$1,1,1),2)>4,0,1))*7,2)+7","v":"2025-08-10"},{"$f":"DATE($B$1,1,1)+($J61-IF(WEEKDAY(DATE($B$1,1,1),2)>4,0,1))*7-WEEKDAY(DATE($B$1,1,1)+($J61-IF(WEEKDAY(DATE($B$1,1,1),2)>4,0,1))*7,2)+7","v":"2025-08-03"}]
[null,null,null,null,null,null,{"$f":"G61+1","v":33},{"$f":"DATE($B$1,1,1)+($G68-IF(WEEKDAY(DATE($B$1,1,1),2)>4,0,1))*7-WEEKDAY(DATE($B$1,1,1)+($G68-IF(WEEKDAY(DATE($B$1,1,1),2)>4,0,1))*7,2)+1","v":"2025-08-11"},{"$f":"DATE($B$1,1,1)+($J68-IF(WEEKDAY(DATE($B$1,1,1),2)>4,0,1))*7-WEEKDAY(DATE($B$1,1,1)+($J68-IF(WEEKDAY(DATE($B$1,1,1),2)>4,0,1))*7,2)+1","v":"2025-08-04"},{"$f":"J61+1","v":32}]
[null,null,null,null,null,null,null,{"$f":"DATE($B$1,1,1)+($G68-IF(WEEKDAY(DATE($B$1,1,1),2)>4,0,1))*7-WEEKDAY(DATE($B$1,1,1)+($G68-IF(WEEKDAY(DATE($B$1,1,1),2)>4,0,1))*7,2)+2","v":"2025-08-12"},{"$f":"DATE($B$1,1,1)+($J68-IF(WEEKDAY(DATE($B$1,1,1),2)>4,0,1))*7-WEEKDAY(DATE($B$1,1,1)+($J68-IF(WEEKDAY(DATE($B$1,1,1),2)>4,0,1))*7,2)+2","v":"2025-08-05"}]
[null,null,null,null,null,null,null,{"$f":"DATE($B$1,1,1)+($G68-IF(WEEKDAY(DATE($B$1,1,1),2)>4,0,1))*7-WEEKDAY(DATE($B$1,1,1)+($G68-IF(WEEKDAY(DATE($B$1,1,1),2)>4,0,1))*7,2)+3","v":"2025-08-13"},{"$f":"DATE($B$1,1,1)+($J68-IF(WEEKDAY(DATE($B$1,1,1),2)>4,0,1))*7-WEEKDAY(DATE($B$1,1,1)+($J68-IF(WEEKDAY(DATE($B$1,1,1),2)>4,0,1))*7,2)+3","v":"2025-08-06"}]
[null,null,null,null,null,null,null,{"$f":"DATE($B$1,1,1)+($G68-IF(WEEKDAY(DATE($B$1,1,1),2)>4,0,1))*7-WEEKDAY(DATE($B$1,1,1)+($G68-IF(WEEKDAY(DATE($B$1,1,1),2)>4,0,1))*7,2)+4","v":"2025-08-14"},{"$f":"DATE($B$1,1,1)+($J68-IF(WEEKDAY(DATE($B$1,1,1),2)>4,0,1))*7-WEEKDAY(DATE($B$1,1,1)+($J68-IF(WEEKDAY(DATE($B$1,1,1),2)>4,0,1))*7,2)+4","v":"2025-08-07"}]
[null,null,null,null,null,null,null,{"$f":"DATE($B$1,1,1)+($G68-IF(WEEKDAY(DATE($B$1,1,1),2)>4,0,1))*7-WEEKDAY(DATE($B$1,1,1)+($G68-IF(WEEKDAY(DATE($B$1,1,1),2)>4,0,1))*7,2)+5","v":"2025-08-15"},{"$f":"DATE($B$1,1,1)+($J68-IF(WEEKDAY(DATE($B$1,1,1),2)>4,0,1))*7-WEEKDAY(DATE($B$1,1,1)+($J68-IF(WEEKDAY(DATE($B$1,1,1),2)>4,0,1))*7,2)+5","v":"2025-08-08"}]
[null,null,null,null,null,null,null,{"$f":"DATE($B$1,1,1)+($G68-IF(WEEKDAY(DATE($B$1,1,1),2)>4,0,1))*7-WEEKDAY(DATE($B$1,1,1)+($G68-IF(WEEKDAY(DATE($B$1,1,1),2)>4,0,1))*7,2)+6","v":"2025-08-16"},{"$f":"DATE($B$1,1,1)+($J68-IF(WEEKDAY(DATE($B$1,1,1),2)>4,0,1))*7-WEEKDAY(DATE($B$1,1,1)+($J68-IF(WEEKDAY(DATE($B$1,1,1),2)>4,0,1))*7,2)+6","v":"2025-08-09"}]
[null,null,null,null,null,null,null,{"$f":"DATE($B$1,1,1)+($G68-IF(WEEKDAY(DATE($B$1,1,1),2)>4,0,1))*7-WEEKDAY(DATE($B$1,1,1)+($G68-IF(WEEKDAY(DATE($B$1,1,1),2)>4,0,1))*7,2)+7","v":"2025-08-17"},{"$f":"DATE($B$1,1,1)+($J68-IF(WEEKDAY(DATE($B$1,1,1),2)>4,0,1))*7-WEEKDAY(DATE($B$1,1,1)+($J68-IF(WEEKDAY(DATE($B$1,1,1),2)>4,0,1))*7,2)+7","v":"2025-08-10"}]
[null,null,null,null,null,null,41,{"$f":"DATE($B$1,1,1)+($G75-IF(WEEKDAY(DATE($B$1,1,1),2)>4,0,1))*7-WEEKDAY(DATE($B$1,1,1)+($G75-IF(WEEKDAY(DATE($B$1,1,1),2)>4,0,1))*7,2)+1","v":"2025-10-06"},{"$f":"DATE($B$1,1,1)+($J75-IF(WEEKDAY(DATE($B$1,1,1),2)>4,0,1))*7-WEEKDAY(DATE($B$1,1,1)+($J75-IF(WEEKDAY(DATE($B$1,1,1),2)>4,0,1))*7,2)+1","v":"2025-09-22"},39]
[null,null,null,null,null,null,null,{"$f":"DATE($B$1,1,1)+($G75-IF(WEEKDAY(DATE($B$1,1,1),2)>4,0,1))*7-WEEKDAY(DATE($B$1,1,1)+($G75-IF(WEEKDAY(DATE($B$1,1,1),2)>4,0,1))*7,2)+2","v":"2025-10-07"},{"$f":"DATE($B$1,1,1)+($J75-IF(WEEKDAY(DATE($B$1,1,1),2)>4,0,1))*7-WEEKDAY(DATE($B$1,1,1)+($J75-IF(WEEKDAY(DATE($B$1,1,1),2)>4,0,1))*7,2)+2","v":"2025-09-23"}]
[null,null,null,null,null,null,null,{"$f":"DATE($B$1,1,1)+($G75-IF(WEEKDAY(DATE($B$1,1,1),2)>4,0,1))*7-WEEKDAY(DATE($B$1,1,1)+($G75-IF(WEEKDAY(DATE($B$1,1,1),2)>4,0,1))*7,2)+3","v":"2025-10-08"},{"$f":"DATE($B$1,1,1)+($J75-IF(WEEKDAY(DATE($B$1,1,1),2)>4,0,1))*7-WEEKDAY(DATE($B$1,1,1)+($J75-IF(WEEKDAY(DATE($B$1,1,1),2)>4,0,1))*7,2)+3","v":"2025-09-24"}]
[null,null,null,null,null,null,null,{"$f":"DATE($B$1,1,1)+($G75-IF(WEEKDAY(DATE($B$1,1,1),2)>4,0,1))*7-WEEKDAY(DATE($B$1,1,1)+($G75-IF(WEEKDAY(DATE($B$1,1,1),2)>4,0,1))*7,2)+4","v":"2025-10-09"},{"$f":"DATE($B$1,1,1)+($J75-IF(WEEKDAY(DATE($B$1,1,1),2)>4,0,1))*7-WEEKDAY(DATE($B$1,1,1)+($J75-IF(WEEKDAY(DATE($B$1,1,1),2)>4,0,1))*7,2)+4","v":"2025-09-25"}]
[null,null,null,null,null,null,null,{"$f":"DATE($B$1,1,1)+($G75-IF(WEEKDAY(DATE($B$1,1,1),2)>4,0,1))*7-WEEKDAY(DATE($B$1,1,1)+($G75-IF(WEEKDAY(DATE($B$1,1,1),2)>4,0,1))*7,2)+5","v":"2025-10-10"},{"$f":"DATE($B$1,1,1)+($J75-IF(WEEKDAY(DATE($B$1,1,1),2)>4,0,1))*7-WEEKDAY(DATE($B$1,1,1)+($J75-IF(WEEKDAY(DATE($B$1,1,1),2)>4,0,1))*7,2)+5","v":"2025-09-26"}]
[null,null,null,null,null,null,null,{"$f":"DATE($B$1,1,1)+($G75-IF(WEEKDAY(DATE($B$1,1,1),2)>4,0,1))*7-WEEKDAY(DATE($B$1,1,1)+($G75-IF(WEEKDAY(DATE($B$1,1,1),2)>4,0,1))*7,2)+6","v":"2025-10-11"},{"$f":"DATE($B$1,1,1)+($J75-IF(WEEKDAY(DATE($B$1,1,1),2)>4,0,1))*7-WEEKDAY(DATE($B$1,1,1)+($J75-IF(WEEKDAY(DATE($B$1,1,1),2)>4,0,1))*7,2)+6","v":"2025-09-27"}]
[null,null,null,null,null,null,null,{"$f":"DATE($B$1,1,1)+($G75-IF(WEEKDAY(DATE($B$1,1,1),2)>4,0,1))*7-WEEKDAY(DATE($B$1,1,1)+($G75-IF(WEEKDAY(DATE($B$1,1,1),2)>4,0,1))*7,2)+7","v":"2025-10-12"},{"$f":"DATE($B$1,1,1)+($J75-IF(WEEKDAY(DATE($B$1,1,1),2)>4,0,1))*7-WEEKDAY(DATE($B$1,1,1)+($J75-IF(WEEKDAY(DATE($B$1,1,1),2)>4,0,1))*7,2)+7","v":"2025-09-28"}]
[null,null,null,null,null,null,{"$f":"G75+1","v":42},{"$f":"DATE($B$1,1,1)+($G82-IF(WEEKDAY(DATE($B$1,1,1),2)>4,0,1))*7-WEEKDAY(DATE($B$1,1,1)+($G82-IF(WEEKDAY(DATE($B$1,1,1),2)>4,0,1))*7,2)+1","v":"2025-10-13"},{"$f":"DATE($B$1,1,1)+($J82-IF(WEEKDAY(DATE($B$1,1,1),2)>4,0,1))*7-WEEKDAY(DATE($B$1,1,1)+($J82-IF(WEEKDAY(DATE($B$1,1,1),2)>4,0,1))*7,2)+1","v":"2025-09-29"},{"$f":"J75+1","v":40}]
[null,null,null,null,null,null,null,{"$f":"DATE($B$1,1,1)+($G82-IF(WEEKDAY(DATE($B$1,1,1),2)>4,0,1))*7-WEEKDAY(DATE($B$1,1,1)+($G82-IF(WEEKDAY(DATE($B$1,1,1),2)>4,0,1))*7,2)+2","v":"2025-10-14"},{"$f":"DATE($B$1,1,1)+($J82-IF(WEEKDAY(DATE($B$1,1,1),2)>4,0,1))*7-WEEKDAY(DATE($B$1,1,1)+($J82-IF(WEEKDAY(DATE($B$1,1,1),2)>4,0,1))*7,2)+2","v":"2025-09-30"}]
[null,null,null,null,null,null,null,{"$f":"DATE($B$1,1,1)+($G82-IF(WEEKDAY(DATE($B$1,1,1),2)>4,0,1))*7-WEEKDAY(DATE($B$1,1,1)+($G82-IF(WEEKDAY(DATE($B$1,1,1),2)>4,0,1))*7,2)+3","v":"2025-10-15"},{"$f":"DATE($B$1,1,1)+($J82-IF(WEEKDAY(DATE($B$1,1,1),2)>4,0,1))*7-WEEKDAY(DATE($B$1,1,1)+($J82-IF(WEEKDAY(DATE($B$1,1,1),2)>4,0,1))*7,2)+3","v":"2025-10-01"}]
[null,null,null,null,null,null,null,{"$f":"DATE($B$1,1,1)+($G82-IF(WEEKDAY(DATE($B$1,1,1),2)>4,0,1))*7-WEEKDAY(DATE($B$1,1,1)+($G82-IF(WEEKDAY(DATE($B$1,1,1),2)>4,0,1))*7,2)+4","v":"2025-10-16"},{"$f":"DATE($B$1,1,1)+($J82-IF(WEEKDAY(DATE($B$1,1,1),2)>4,0,1))*7-WEEKDAY(DATE($B$1,1,1)+($J82-IF(WEEKDAY(DATE($B$1,1,1),2)>4,0,1))*7,2)+4","v":"2025-10-02"}]
[null,null,null,null,null,null,null,{"$f":"DATE($B$1,1,1)+($G82-IF(WEEKDAY(DATE($B$1,1,1),2)>4,0,1))*7-WEEKDAY(DATE($B$1,1,1)+($G82-IF(WEEKDAY(DATE($B$1,1,1),2)>4,0,1))*7,2)+5","v":"2025-10-17"},{"$f":"DATE($B$1,1,1)+($J82-IF(WEEKDAY(DATE($B$1,1,1),2)>4,0,1))*7-WEEKDAY(DATE($B$1,1,1)+($J82-IF(WEEKDAY(DATE($B$1,1,1),2)>4,0,1))*7,2)+5","v":"2025-10-03"}]
[null,null,null,null,null,null,null,{"$f":"DATE($B$1,1,1)+($G82-IF(WEEKDAY(DATE($B$1,1,1),2)>4,0,1))*7-WEEKDAY(DATE($B$1,1,1)+($G82-IF(WEEKDAY(DATE($B$1,1,1),2)>4,0,1))*7,2)+6","v":"2025-10-18"},{"$f":"DATE($B$1,1,1)+($J82-IF(WEEKDAY(DATE($B$1,1,1),2)>4,0,1))*7-WEEKDAY(DATE($B$1,1,1)+($J82-IF(WEEKDAY(DATE($B$1,1,1),2)>4,0,1))*7,2)+6","v":"2025-10-04"}]
[null,null,null,null,null,null,null,{"$f":"DATE($B$1,1,1)+($G82-IF(WEEKDAY(DATE($B$1,1,1),2)>4,0,1))*7-WEEKDAY(DATE($B$1,1,1)+($G82-IF(WEEKDAY(DATE($B$1,1,1),2)>4,0,1))*7,2)+7","v":"2025-10-19"},{"$f":"DATE($B$1,1,1)+($J82-IF(WEEKDAY(DATE($B$1,1,1),2)>4,0,1))*7-WEEKDAY(DATE($B$1,1,1)+($J82-IF(WEEKDAY(DATE($B$1,1,1),2)>4,0,1))*7,2)+7","v":"2025-10-05"}]
[null,null,null,null,null,null,52,{"$f":"DATE($B$1,1,1)+($G89-IF(WEEKDAY(DATE($B$1,1,1),2)>4,0,1))*7-WEEKDAY(DATE($B$1,1,1)+($G89-IF(WEEKDAY(DATE($B$1,1,1),2)>4,0,1))*7,2)+1","v":"2025-12-22"},{"$f":"DATE($B$1,1,1)+($J89-IF(WEEKDAY(DATE($B$1,1,1),2)>4,0,1))*7-WEEKDAY(DATE($B$1,1,1)+($J89-IF(WEEKDAY(DATE($B$1,1,1),2)>4,0,1))*7,2)+1","v":"2025-10-06"},{"$f":"J82+1","v":41}]
[null,null,null,null,null,null,null,{"$f":"DATE($B$1,1,1)+($G89-IF(WEEKDAY(DATE($B$1,1,1),2)>4,0,1))*7-WEEKDAY(DATE($B$1,1,1)+($G89-IF(WEEKDAY(DATE($B$1,1,1),2)>4,0,1))*7,2)+2","v":"2025-12-23"},{"$f":"DATE($B$1,1,1)+($J89-IF(WEEKDAY(DATE($B$1,1,1),2)>4,0,1))*7-WEEKDAY(DATE($B$1,1,1)+($J89-IF(WEEKDAY(DATE($B$1,1,1),2)>4,0,1))*7,2)+2","v":"2025-10-07"}]
[null,null,null,null,null,null,null,{"$f":"DATE($B$1,1,1)+($G89-IF(WEEKDAY(DATE($B$1,1,1),2)>4,0,1))*7-WEEKDAY(DATE($B$1,1,1)+($G89-IF(WEEKDAY(DATE($B$1,1,1),2)>4,0,1))*7,2)+3","v":"2025-12-24"},{"$f":"DATE($B$1,1,1)+($J89-IF(WEEKDAY(DATE($B$1,1,1),2)>4,0,1))*7-WEEKDAY(DATE($B$1,1,1)+($J89-IF(WEEKDAY(DATE($B$1,1,1),2)>4,0,1))*7,2)+3","v":"2025-10-08"}]
[null,null,null,null,null,null,null,{"$f":"DATE($B$1,1,1)+($G89-IF(WEEKDAY(DATE($B$1,1,1),2)>4,0,1))*7-WEEKDAY(DATE($B$1,1,1)+($G89-IF(WEEKDAY(DATE($B$1,1,1),2)>4,0,1))*7,2)+4","v":"2025-12-25"},{"$f":"DATE($B$1,1,1)+($J89-IF(WEEKDAY(DATE($B$1,1,1),2)>4,0,1))*7-WEEKDAY(DATE($B$1,1,1)+($J89-IF(WEEKDAY(DATE($B$1,1,1),2)>4,0,1))*7,2)+4","v":"2025-10-09"}]
[null,null,null,null,null,null,null,{"$f":"DATE($B$1,1,1)+($G89-IF(WEEKDAY(DATE($B$1,1,1),2)>4,0,1))*7-WEEKDAY(DATE($B$1,1,1)+($G89-IF(WEEKDAY(DATE($B$1,1,1),2)>4,0,1))*7,2)+5","v":"2025-12-26"},{"$f":"DATE($B$1,1,1)+($J89-IF(WEEKDAY(DATE($B$1,1,1),2)>4,0,1))*7-WEEKDAY(DATE($B$1,1,1)+($J89-IF(WEEKDAY(DATE($B$1,1,1),2)>4,0,1))*7,2)+5","v":"2025-10-10"}]
[null,null,null,null,null,null,null,{"$f":"DATE($B$1,1,1)+($G89-IF(WEEKDAY(DATE($B$1,1,1),2)>4,0,1))*7-WEEKDAY(DATE($B$1,1,1)+($G89-IF(WEEKDAY(DATE($B$1,1,1),2)>4,0,1))*7,2)+6","v":"2025-12-27"},{"$f":"DATE($B$1,1,1)+($J89-IF(WEEKDAY(DATE($B$1,1,1),2)>4,0,1))*7-WEEKDAY(DATE($B$1,1,1)+($J89-IF(WEEKDAY(DATE($B$1,1,1),2)>4,0,1))*7,2)+6","v":"2025-10-11"}]
[null,null,null,null,null,null,null,{"$f":"DATE($B$1,1,1)+($G89-IF(WEEKDAY(DATE($B$1,1,1),2)>4,0,1))*7-WEEKDAY(DATE($B$1,1,1)+($G89-IF(WEEKDAY(DATE($B$1,1,1),2)>4,0,1))*7,2)+7","v":"2025-12-28"},{"$f":"DATE($B$1,1,1)+($J89-IF(WEEKDAY(DATE($B$1,1,1),2)>4,0,1))*7-WEEKDAY(DATE($B$1,1,1)+($J89-IF(WEEKDAY(DATE($B$1,1,1),2)>4,0,1))*7,2)+7","v":"2025-10-12"}]
[null,null,null,null,null,null,{"$f":"G89+1","v":53},{"$f":"DATE($B$1,1,1)+($G96-IF(WEEKDAY(DATE($B$1,1,1),2)>4,0,1))*7-WEEKDAY(DATE($B$1,1,1)+($G96-IF(WEEKDAY(DATE($B$1,1,1),2)>4,0,1))*7,2)+1","v":"2025-12-29"},{"$f":"DATE($B$1,1,1)+($J96-IF(WEEKDAY(DATE($B$1,1,1),2)>4,0,1))*7-WEEKDAY(DATE($B$1,1,1)+($J96-IF(WEEKDAY(DATE($B$1,1,1),2)>4,0,1))*7,2)+1","v":"2025-12-22"},52]
[null,null,null,null,null,null,null,{"$f":"DATE($B$1,1,1)+($G96-IF(WEEKDAY(DATE($B$1,1,1),2)>4,0,1))*7-WEEKDAY(DATE($B$1,1,1)+($G96-IF(WEEKDAY(DATE($B$1,1,1),2)>4,0,1))*7,2)+2","v":"2025-12-30"},{"$f":"DATE($B$1,1,1)+($J96-IF(WEEKDAY(DATE($B$1,1,1),2)>4,0,1))*7-WEEKDAY(DATE($B$1,1,1)+($J96-IF(WEEKDAY(DATE($B$1,1,1),2)>4,0,1))*7,2)+2","v":"2025-12-23"}]
[null,null,null,null,null,null,null,{"$f":"DATE($B$1,1,1)+($G96-IF(WEEKDAY(DATE($B$1,1,1),2)>4,0,1))*7-WEEKDAY(DATE($B$1,1,1)+($G96-IF(WEEKDAY(DATE($B$1,1,1),2)>4,0,1))*7,2)+3","v":"2025-12-31"},{"$f":"DATE($B$1,1,1)+($J96-IF(WEEKDAY(DATE($B$1,1,1),2)>4,0,1))*7-WEEKDAY(DATE($B$1,1,1)+($J96-IF(WEEKDAY(DATE($B$1,1,1),2)>4,0,1))*7,2)+3","v":"2025-12-24"}]
[null,null,null,null,null,null,null,{"$f":"DATE($B$1,1,1)+($G96-IF(WEEKDAY(DATE($B$1,1,1),2)>4,0,1))*7-WEEKDAY(DATE($B$1,1,1)+($G96-IF(WEEKDAY(DATE($B$1,1,1),2)>4,0,1))*7,2)+4","v":"2026-01-01"},{"$f":"DATE($B$1,1,1)+($J96-IF(WEEKDAY(DATE($B$1,1,1),2)>4,0,1))*7-WEEKDAY(DATE($B$1,1,1)+($J96-IF(WEEKDAY(DATE($B$1,1,1),2)>4,0,1))*7,2)+4","v":"2025-12-25"}]
[null,null,null,null,null,null,null,{"$f":"DATE($B$1,1,1)+($G96-IF(WEEKDAY(DATE($B$1,1,1),2)>4,0,1))*7-WEEKDAY(DATE($B$1,1,1)+($G96-IF(WEEKDAY(DATE($B$1,1,1),2)>4,0,1))*7,2)+5","v":"2026-01-02"},{"$f":"DATE($B$1,1,1)+($J96-IF(WEEKDAY(DATE($B$1,1,1),2)>4,0,1))*7-WEEKDAY(DATE($B$1,1,1)+($J96-IF(WEEKDAY(DATE($B$1,1,1),2)>4,0,1))*7,2)+5","v":"2025-12-26"}]
[null,null,null,null,null,null,null,{"$f":"DATE($B$1,1,1)+($G96-IF(WEEKDAY(DATE($B$1,1,1),2)>4,0,1))*7-WEEKDAY(DATE($B$1,1,1)+($G96-IF(WEEKDAY(DATE($B$1,1,1),2)>4,0,1))*7,2)+6","v":"2026-01-03"},{"$f":"DATE($B$1,1,1)+($J96-IF(WEEKDAY(DATE($B$1,1,1),2)>4,0,1))*7-WEEKDAY(DATE($B$1,1,1)+($J96-IF(WEEKDAY(DATE($B$1,1,1),2)>4,0,1))*7,2)+6","v":"2025-12-27"}]
[null,null,null,null,null,null,null,{"$f":"DATE($B$1,1,1)+($G96-IF(WEEKDAY(DATE($B$1,1,1),2)>4,0,1))*7-WEEKDAY(DATE($B$1,1,1)+($G96-IF(WEEKDAY(DATE($B$1,1,1),2)>4,0,1))*7,2)+7","v":"2026-01-04"},{"$f":"DATE($B$1,1,1)+($J96-IF(WEEKDAY(DATE($B$1,1,1),2)>4,0,1))*7-WEEKDAY(DATE($B$1,1,1)+($J96-IF(WEEKDAY(DATE($B$1,1,1),2)>4,0,1))*7,2)+7","v":"2025-12-28"}]
[null,null,null,null,null,null,null,{"$f":"DATE($B$1,1,1)+($G103-IF(WEEKDAY(DATE($B$1,1,1),2)>4,0,1))*7-WEEKDAY(DATE($B$1,1,1)+($G103-IF(WEEKDAY(DATE($B$1,1,1),2)>4,0,1))*7,2)+1","v":"2024-12-23"},{"$f":"DATE($B$1,1,1)+($J103-IF(WEEKDAY(DATE($B$1,1,1),2)>4,0,1))*7-WEEKDAY(DATE($B$1,1,1)+($J103-IF(WEEKDAY(DATE($B$1,1,1),2)>4,0,1))*7,2)+1","v":"2025-12-29"},{"$f":"J96+1","v":53}]
[null,null,null,null,null,null,null,{"$f":"DATE($B$1,1,1)+($G103-IF(WEEKDAY(DATE($B$1,1,1),2)>4,0,1))*7-WEEKDAY(DATE($B$1,1,1)+($G103-IF(WEEKDAY(DATE($B$1,1,1),2)>4,0,1))*7,2)+2","v":"2024-12-24"},{"$f":"DATE($B$1,1,1)+($J103-IF(WEEKDAY(DATE($B$1,1,1),2)>4,0,1))*7-WEEKDAY(DATE($B$1,1,1)+($J103-IF(WEEKDAY(DATE($B$1,1,1),2)>4,0,1))*7,2)+2","v":"2025-12-30"}]
[null,null,null,null,null,null,null,{"$f":"DATE($B$1,1,1)+($G103-IF(WEEKDAY(DATE($B$1,1,1),2)>4,0,1))*7-WEEKDAY(DATE($B$1,1,1)+($G103-IF(WEEKDAY(DATE($B$1,1,1),2)>4,0,1))*7,2)+3","v":"2024-12-25"},{"$f":"DATE($B$1,1,1)+($J103-IF(WEEKDAY(DATE($B$1,1,1),2)>4,0,1))*7-WEEKDAY(DATE($B$1,1,1)+($J103-IF(WEEKDAY(DATE($B$1,1,1),2)>4,0,1))*7,2)+3","v":"2025-12-31"}]
[null,null,null,null,null,null,null,{"$f":"DATE($B$1,1,1)+($G103-IF(WEEKDAY(DATE($B$1,1,1),2)>4,0,1))*7-WEEKDAY(DATE($B$1,1,1)+($G103-IF(WEEKDAY(DATE($B$1,1,1),2)>4,0,1))*7,2)+4","v":"2024-12-26"},{"$f":"DATE($B$1,1,1)+($J103-IF(WEEKDAY(DATE($B$1,1,1),2)>4,0,1))*7-WEEKDAY(DATE($B$1,1,1)+($J103-IF(WEEKDAY(DATE($B$1,1,1),2)>4,0,1))*7,2)+4","v":"2026-01-01"}]
[null,null,null,null,null,null,null,{"$f":"DATE($B$1,1,1)+($G103-IF(WEEKDAY(DATE($B$1,1,1),2)>4,0,1))*7-WEEKDAY(DATE($B$1,1,1)+($G103-IF(WEEKDAY(DATE($B$1,1,1),2)>4,0,1))*7,2)+5","v":"2024-12-27"},{"$f":"DATE($B$1,1,1)+($J103-IF(WEEKDAY(DATE($B$1,1,1),2)>4,0,1))*7-WEEKDAY(DATE($B$1,1,1)+($J103-IF(WEEKDAY(DATE($B$1,1,1),2)>4,0,1))*7,2)+5","v":"2026-01-02"}]
[null,null,null,null,null,null,null,{"$f":"DATE($B$1,1,1)+($G103-IF(WEEKDAY(DATE($B$1,1,1),2)>4,0,1))*7-WEEKDAY(DATE($B$1,1,1)+($G103-IF(WEEKDAY(DATE($B$1,1,1),2)>4,0,1))*7,2)+6","v":"2024-12-28"},{"$f":"DATE($B$1,1,1)+($J103-IF(WEEKDAY(DATE($B$1,1,1),2)>4,0,1))*7-WEEKDAY(DATE($B$1,1,1)+($J103-IF(WEEKDAY(DATE($B$1,1,1),2)>4,0,1))*7,2)+6","v":"2026-01-03"}]
[null,null,null,null,null,null,null,{"$f":"DATE($B$1,1,1)+($G103-IF(WEEKDAY(DATE($B$1,1,1),2)>4,0,1))*7-WEEKDAY(DATE($B$1,1,1)+($G103-IF(WEEKDAY(DATE($B$1,1,1),2)>4,0,1))*7,2)+7","v":"2024-12-29"},{"$f":"DATE($B$1,1,1)+($J103-IF(WEEKDAY(DATE($B$1,1,1),2)>4,0,1))*7-WEEKDAY(DATE($B$1,1,1)+($J103-IF(WEEKDAY(DATE($B$1,1,1),2)>4,0,1))*7,2)+7","v":"2026-01-04"}]
[null,null,null,null,null,null,null,{"$f":"DATE($B$1,1,1)+($G110-IF(WEEKDAY(DATE($B$1,1,1),2)>4,0,1))*7-WEEKDAY(DATE($B$1,1,1)+($G110-IF(WEEKDAY(DATE($B$1,1,1),2)>4,0,1))*7,2)+1","v":"2024-12-23"},{"$f":"DATE($B$1,1,1)+($J110-IF(WEEKDAY(DATE($B$1,1,1),2)>4,0,1))*7-WEEKDAY(DATE($B$1,1,1)+($J110-IF(WEEKDAY(DATE($B$1,1,1),2)>4,0,1))*7,2)+1","v":"2024-12-23"}]
[null,null,null,null,null,null,null,{"$f":"DATE($B$1,1,1)+($G110-IF(WEEKDAY(DATE($B$1,1,1),2)>4,0,1))*7-WEEKDAY(DATE($B$1,1,1)+($G110-IF(WEEKDAY(DATE($B$1,1,1),2)>4,0,1))*7,2)+2","v":"2024-12-24"},{"$f":"DATE($B$1,1,1)+($J110-IF(WEEKDAY(DATE($B$1,1,1),2)>4,0,1))*7-WEEKDAY(DATE($B$1,1,1)+($J110-IF(WEEKDAY(DATE($B$1,1,1),2)>4,0,1))*7,2)+2","v":"2024-12-24"}]
[null,null,null,null,null,null,null,{"$f":"DATE($B$1,1,1)+($G110-IF(WEEKDAY(DATE($B$1,1,1),2)>4,0,1))*7-WEEKDAY(DATE($B$1,1,1)+($G110-IF(WEEKDAY(DATE($B$1,1,1),2)>4,0,1))*7,2)+3","v":"2024-12-25"},{"$f":"DATE($B$1,1,1)+($J110-IF(WEEKDAY(DATE($B$1,1,1),2)>4,0,1))*7-WEEKDAY(DATE($B$1,1,1)+($J110-IF(WEEKDAY(DATE($B$1,1,1),2)>4,0,1))*7,2)+3","v":"2024-12-25"}]
[null,null,null,null,null,null,null,{"$f":"DATE($B$1,1,1)+($G110-IF(WEEKDAY(DATE($B$1,1,1),2)>4,0,1))*7-WEEKDAY(DATE($B$1,1,1)+($G110-IF(WEEKDAY(DATE($B$1,1,1),2)>4,0,1))*7,2)+4","v":"2024-12-26"},{"$f":"DATE($B$1,1,1)+($J110-IF(WEEKDAY(DATE($B$1,1,1),2)>4,0,1))*7-WEEKDAY(DATE($B$1,1,1)+($J110-IF(WEEKDAY(DATE($B$1,1,1),2)>4,0,1))*7,2)+4","v":"2024-12-26"}]
[null,null,null,null,null,null,null,{"$f":"DATE($B$1,1,1)+($G110-IF(WEEKDAY(DATE($B$1,1,1),2)>4,0,1))*7-WEEKDAY(DATE($B$1,1,1)+($G110-IF(WEEKDAY(DATE($B$1,1,1),2)>4,0,1))*7,2)+5","v":"2024-12-27"},{"$f":"DATE($B$1,1,1)+($J110-IF(WEEKDAY(DATE($B$1,1,1),2)>4,0,1))*7-WEEKDAY(DATE($B$1,1,1)+($J110-IF(WEEKDAY(DATE($B$1,1,1),2)>4,0,1))*7,2)+5","v":"2024-12-27"}]
[null,null,null,null,null,null,null,{"$f":"DATE($B$1,1,1)+($G110-IF(WEEKDAY(DATE($B$1,1,1),2)>4,0,1))*7-WEEKDAY(DATE($B$1,1,1)+($G110-IF(WEEKDAY(DATE($B$1,1,1),2)>4,0,1))*7,2)+6","v":"2024-12-28"},{"$f":"DATE($B$1,1,1)+($J110-IF(WEEKDAY(DATE($B$1,1,1),2)>4,0,1))*7-WEEKDAY(DATE($B$1,1,1)+($J110-IF(WEEKDAY(DATE($B$1,1,1),2)>4,0,1))*7,2)+6","v":"2024-12-28"}]
[null,null,null,null,null,null,null,{"$f":"DATE($B$1,1,1)+($G110-IF(WEEKDAY(DATE($B$1,1,1),2)>4,0,1))*7-WEEKDAY(DATE($B$1,1,1)+($G110-IF(WEEKDAY(DATE($B$1,1,1),2)>4,0,1))*7,2)+7","v":"2024-12-29"},{"$f":"DATE($B$1,1,1)+($J110-IF(WEEKDAY(DATE($B$1,1,1),2)>4,0,1))*7-WEEKDAY(DATE($B$1,1,1)+($J110-IF(WEEKDAY(DATE($B$1,1,1),2)>4,0,1))*7,2)+7","v":"2024-12-29"}]